{"text_format":"3","workbook":"xlsx","n_sheets":6,"sheets":["汇总表","1#楼建筑工程","3#建筑物结构","5#建筑物结构","异形廊架建筑物结构","构筑物桩基工程"],"not_rendered":{"defined_names":4},"read":"whole","date_system":"1900"}

{"sheet":"汇总表","index":0,"n_rows":13,"n_cols":5,"rows_kept":13,"merged":[[0,0,0,4],[9,0,9,4],[10,0,10,4],[11,0,11,4],[12,0,12,4]]}
["2023年“P”项目建筑物基础及结构工程专业分包报价汇总表"]
["序号","项目名称","采购最高限价\n（元）","班组投标报价\n（元）","备注"]
[1,"1#楼",{"$f":"'1#楼建筑工程'!G44","v":{"v":467890,"d":"467890.00"}}]
[2,"3#楼",{"$f":"'3#建筑物结构'!G44","v":{"v":467890,"d":"467890.00"}}]
[3,"5#楼",{"$f":"'5#建筑物结构'!G47","v":{"v":1064988,"d":"1064988.00"}}]
[4,"异型廊架",{"$f":"异形廊架建筑物结构!G44","v":{"v":1017530,"d":"1017530.00"}}]
[5,"桩基础工程",{"$f":"构筑物桩基工程!G15","v":{"v":757840,"d":"757840.00"}}]
[6,"清单外部分",{"$f":"3776138*0.1*0.95","v":358733.11},null,"清单外新增工程按四川省2020清单定额下浮报价，按377613元为基数，最低下浮9.5%，以投标人所报下浮比例后的最终金额进入评标价"]
[7,"合计：",{"$f":"SUM(C3:C8)","v":4134871.11},{"$f":"SUM(D3:D7)","v":{"v":0,"d":"0.00"}}]
["报价单位名称（公章）："]
["法人或委托人姓名及电话："]
["时间："]
["说明：\n1、工程招标范围：柏木溪生态公园1#楼、3#楼、5#楼和异型廊架工程基础土石方、桩基础、独立基础、基础梁、混凝土工程、钢结构工程和砌体等，完成面完成至屋面顶板混凝土浇筑和内外墙砌体工程。商品砼甲供，其余材料由投标人提供；\n2.投标人根据施工工艺、工序及国家现行规范自行踏勘现场后综合考虑进行报价，结算时不作调整;\n3.全费用综合单价包含人工费、所有材料费（含辅材和周转材料费，甲供材除外）、机械设备费、工具器具费、临时设施及措施费、大型机械进出场及场内转运费、下车费、吊装费、规费、管理费、配合费、安全文明施工费、以及各种风险费、保险费、施工过程中办理的各种手续费、降水费、排水费、各种检测费、利润、税费等完成该工作所需的全部费用，结算时无论涨跌、工程量增减或其它任何风险因素，均不作调整。垂直运输费、综合脚手架费用已考虑在综合单价中，不再单独记取，外脚手架已列清单，按四川省2020清单定额计算规则计算工程量。\n4.施工中临时用水管道、开关箱、机具等由投标人自行从建设方提供的接口处接出，用电需投标人自行考虑发电机费用，所有材料、设备及安装费用含在综合单价中，水费需自行装水表向甲方缴纳水费。\n5.施工棚（用于钢筋制作、模版/木方切割等）搭设及所有施工机具由投标人自行考虑施工，费用综合考虑到投标报价中。\n6.现场安全环保文明施工管理要求：（1）由公司统一发放印有“兴绿园林”字样和LOGO的安全帽和反光背心，班组按实名制领取，使用完后交回项目部，否则按采购费用扣款，其余参照合同附件中安全环保管理协议执行。（2）现场雾炮机由甲方提供，投标单位需安排人员管理使用，人工费、油费及管理费用综合考虑到投标报价中，不单独计取。  （3）防尘网由甲方提供，投标单位安排人员进行覆盖、回收、现场转移等，人工费综合考虑到投标报价中，不单独计取。"]

{"sheet":"1#楼建筑工程","index":1,"n_rows":48,"n_cols":10,"rows_kept":48,"merged":[[0,0,0,9],[43,0,43,5],[44,0,44,9],[45,0,45,9],[46,0,46,9],[47,0,47,8]]}
["2023年“P”项目1#建筑物结构清单与报价表"]
["序号","项目名称","项目特征描述","计量\r\n单位","工程量","全费用单价限价（元）","限价合价","班组所报全费用单价（元）","合价（元）","备注"]
[1,"基础土石方开挖","1.基础类型：综合考虑\n2.挖土深度：综合\n3.挖土方式：由投标人自行考虑，包含在投标报价中。\n4.场内转运：由投标人自行考虑，包含在投标报价中。                                                                                                                                                                             5.做法：满足设计及现行施工技术、质量验收规范要求  \n6.投标人应对施工现场及周边条件进行仔细勘察，充分考虑各种因素，综合报价。","m3",220,15,{"$f":"F3*E3","v":3300}]
[2,"基础土石方回填（含房心回填）","1.基础类型：综合考虑\n2.回填深度：综合\n3.回填方式：由投标人自行考虑，满足设计及现行施工技术、质量验收规范要求，包含在投标报价中。\n4.场内转运：由投标人自行考虑，包含在投标报价中。                                                                                                                                                                                \n5.投标人应对施工现场及周边条件进行仔细勘察，充分考虑各种因素，综合报价。\n6.回填打夯后的碾压密实度应达到设计和规范要求。","m3",110,8,880]
[3,"碎石垫层","1.垫层类型：碎石垫层\n2.垫层厚度及材质要求：详设计施工图\n3.材料运输方式及运距：投标人自行确定\n4.做法：满足设计及现行施工技术、质量验收规范要求                                                                                                                                                                           5.材料场内运输、转运费用已综合考虑在单价中                                     ","m3",5,180,900]
[4,"现浇钢筋混凝土垫层","1.垫层类型：综合考虑\n2.混凝土等级：综合考虑（混凝土甲供）\n3.砼现场泵送采用的机械种类及方式：投标人自行确定，泵送费用和泵送运距已综合考虑在单价中                                                                                                                                           4.材料场内运输、转运费用由投标人综合考虑，包含在投标报价中。  \n5.做法：满足设计及现行施工技术、质量验收规范要求                                                                                                                                                                               6.甲供砼材料损耗量控制在3%以内，超出损耗部分由投标人承担；损耗小于3%，节约部分的50%作为投标人奖励。","m3",30,60,1800]
[5,"现浇钢筋混凝土基础及承台","1.基础及承台类型：综合考虑\n2.混凝土等级：综合考虑（混凝土甲供）\n3.砼现场泵送采用的机械种类及方式：投标人自行确定，泵送费用和泵送运距已综合考虑在单价中                                                                                                                                     4.材料场内运输、转运费用由投标人综合考虑，包含在投标报价中。  \n5.做法：满足设计及现行施工技术、质量验收规范要求                                                                                                                                                                                     6.甲供砼材料损耗量控制在3%以内，超出损耗部分由投标人承担；损耗小于3%，节约部分的50%作为投标人奖励。","m3",70,60,4200]
[6,"现浇钢筋混凝土基础梁","1.基础梁类型：综合考虑\n2.混凝土等级：综合考虑（混凝土甲供）\n3.砼现场泵送采用的机械种类及方式：投标人自行确定，泵送费用和泵送运距已综合考虑在单价中                                                                                                                                          4.材料场内运输、转运费用由投标人综合考虑，包含在投标报价中。  \n5.做法：满足设计及现行施工技术、质量验收规范要求                                                                                                                                                                               6.甲供砼材料损耗量控制在3%以内，超出损耗部分由投标人承担；损耗小于3%，节约部分的50%作为投标人奖励。","m3",60,65,3900]
[7,"现浇钢筋混凝土柱","1.混凝土柱类型及高度：综合考虑\n2.混凝土等级：综合考虑（混凝土甲供）\n3.砼现场泵送采用的机械种类及方式：投标人自行确定，泵送费用和泵送运距已综合考虑在单价中                                                                                                                                         4.材料场内运输、转运费用由投标人综合考虑，包含在投标报价中。  \n5.做法：满足设计及现行施工技术、质量验收规范要求                                                                                                                                                                                6.甲供砼材料损耗量控制在3%以内，超出损耗部分由投标人承担；损耗小于3%，节约部分的50%作为投标人奖励。","m3",15,65,975]
[8,"现浇钢筋混凝土有梁板","1.混凝土有梁板类型及高度：综合考虑\n2.混凝土等级：综合考虑（混凝土甲供）\n3.砼现场泵送采用的机械种类及方式：投标人自行确定，泵送费用和泵送运距已综合考虑在单价中                                                                                                                                         4.材料场内运输、转运费用由投标人综合考虑，包含在投标报价中。  \n5.做法：满足设计及现行施工技术、质量验收规范要求                                                                                                                                                                                6.甲供砼材料损耗量控制在3%以内，超出损耗部分由投标人承担；损耗小于3%，节约部分的50%作为投标人奖励。","m3",50,65,3250]
[9,"现浇钢筋混凝土墙","1.混凝土墙类型及高度：综合考虑\n2.混凝土等级：综合考虑（混凝土甲供）\n3.砼现场泵送采用的机械种类及方式：投标人自行确定，泵送费用和泵送运距已综合考虑在单价中                                                                                                                                         4.材料场内运输、转运费用由投标人综合考虑，包含在投标报价中。  \n5.做法：满足设计及现行施工技术、质量验收规范要求                                                                                                                                                                                6.甲供砼材料损耗量控制在3%以内，超出损耗部分由投标人承担；损耗小于3%，节约部分的50%作为投标人奖励。","m3",5,65,325]
[10,"地下室底板","1.混凝底板类型：综合考虑\n2.混凝土等级：综合考虑（混凝土甲供）\n3.砼现场泵送采用的机械种类及方式：投标人自行确定，泵送费用和泵送运距已综合考虑在单价中                                                                                                                                         4.材料场内运输、转运费用由投标人综合考虑，包含在投标报价中。  \n5.做法：满足设计及现行施工技术、质量验收规范要求                                                                                                                                                                                6.甲供砼材料损耗量控制在3%以内，超出损耗部分由投标人承担；损耗小于3%，节约部分的50%作为投标人奖励。","m3",50,60,3000]
[11,"混凝土板屋面（含斜面）","1.混凝土板屋面类型及高度：综合考虑\n2.混凝土等级：综合考虑（混凝土甲供）\n3.砼现场泵送采用的机械种类及方式：投标人自行确定，泵送费用和泵送运距已综合考虑在单价中                                                                                                                                         4.材料场内运输、转运费用由投标人综合考虑，包含在投标报价中。  \n5.做法：满足设计及现行施工技术、质量验收规范要求                                                                                                                                                                                6.甲供砼材料损耗量控制在3%以内，超出损耗部分由投标人承担；损耗小于3%，节约部分的50%作为投标人奖励。","m3",30,75,2250]
[12,"砼构造柱","1.构造柱尺寸及高度：综合考虑\n2.混凝土等级：综合考虑（混凝土甲供）\n3.砼现场泵送采用的机械种类及方式：投标人自行确定，泵送费用和泵送运距已综合考虑在单价中                                                                                                                                         4.材料场内运输、转运费用由投标人综合考虑，包含在投标报价中。  \n5.做法：满足设计及现行施工技术、质量验收规范要求                                                                                                                                                                                6.甲供砼材料损耗量控制在3%以内，超出损耗部分由投标人承担；损耗小于3%，节约部分的50%作为投标人奖励。","m3",10,75,750]
[13,"砼圈梁、过梁","1.构件尺寸及高度：综合考虑\n2.混凝土等级：综合考虑（混凝土甲供）\n3.砼现场泵送采用的机械种类及方式：投标人自行确定，泵送费用和泵送运距已综合考虑在单价中                                                                                                                                         4.材料场内运输、转运费用由投标人综合考虑，包含在投标报价中。  \n5.做法：满足设计及现行施工技术、质量验收规范要求                                                                                                                                                                                6.甲供砼材料损耗量控制在3%以内，超出损耗部分由投标人承担；损耗小于3%，节约部分的50%作为投标人奖励。","m3",5,75,375]
[14,"砼压顶","1.砼压顶尺寸：综合考虑\n2.混凝土等级：综合考虑（混凝土甲供）\n3.砼现场泵送采用的机械种类及方式：投标人自行确定，泵送费用和泵送运距已综合考虑在单价中                                                                                                                                         4.材料场内运输、转运费用由投标人综合考虑，包含在投标报价中。  \n5.做法：满足设计及现行施工技术、质量验收规范要求                                                                                                                                                                                6.甲供砼材料损耗量控制在3%以内，超出损耗部分由投标人承担；损耗小于3%，节约部分的50%作为投标人奖励。","m3",5,75,375]
[15,"现浇构件钢筋 HRB400E直径≤φ10","1.钢筋种类、规格：HRB400EΦ10以内\n2.投标人综合考虑制作、安装及埋设的方式，无论采用预留、植筋或其他方式施工,其所有费用均包括在所报综合单价中不再另行计取\n3.做法：满足设计及现行施工技术、质量验收规范要求                                                 4.材料场内运输、转运费用已综合考虑在单价中","T",10,6000,60000]
[16,"现浇构件钢筋 HRB400E直径φ12～14","1.钢筋种类、规格：螺纹钢HRB400E φ12～14\n2.投标人综合考虑制作、安装及埋设的方式，无论采用预留、植筋或其他方式施工,其所有费用均包括在所报综合单价中不再另行计取\n3.做法：满足设计及现行施工技术、质量验收规范要求                                             4.材料场内运输、转运费用已综合考虑在单价中","T",20,6000,120000]
[17,"现浇构件钢筋 HRB400E直径≥φ16","1.钢筋种类、规格：HRB400E直径≥φ16\n2.投标人综合考虑制作、安装及埋设的方式，无论采用预留、植筋或其他方式施工,其所有费用均包括在所报综合单价中不再另行计取\n3.做法：满足设计及现行施工技术、质量验收规范要求                                              4.材料场内运输、转运费用已综合考虑在单价中","T",15,6000,90000]
[18,"页岩实心砖墙","1.砖品种、规格、强度等级：页岩实心砖\n2.墙体尺寸：详设计施工图\n3.砂浆强度等级：M7.5干混砂浆\n4.砂浆拌和料要求：预拌干混砂浆，此单价已包含砂浆运输，由投标人综合考虑\n5.做法：满足设计及现行施工技术、质量验收规范要求                                             6.材料场内运输、转运费用已综合考虑在单价中","m3",30,580,17400]
[19,"加气混凝土砌块墙 ","1.砖品种、规格、强度等级：加气混凝土砌块\n2.墙体尺寸：详设计施工图\n3.砂浆强度等级：M7.5干混砂浆\n4.砂浆拌和料要求：预拌干混砂浆，此单价已包含砂浆运输，由投标人综合考虑\n5.做法：满足设计及现行施工技术、质量验收规范要求                                             7.材料场内运输、转运费用已综合考虑在单价中","m3",20,630,12600]
[20,"烧结多孔砖墙","1.砖品种、规格、强度等级：烧结多孔砖\n2.墙体尺寸：详设计施工图\n3.砂浆强度等级：M7.5干混砂浆\n4.砂浆拌和料要求：预拌干混砂浆，此单价已包含砂浆运输，由投标人综合考虑\n5.做法：满足设计及现行施工技术、质量验收规范要求                                             8.材料场内运输、转运费用已综合考虑在单价中","m3",10,520,5200]
[21,"混凝土楼地面","1.楼地面类型：综合考虑\n2.混凝土等级：综合考虑（混凝土甲供）\n3.砼现场泵送采用的机械种类及方式：投标人自行确定，泵送费用和泵送运距已综合考虑在单价中                                                                                                                                         4.材料场内运输、转运费用由投标人综合考虑，包含在投标报价中。  \n5.做法：满足设计及现行施工技术、质量验收规范要求                                                                                                                                                                                6.甲供砼材料损耗量控制在3%以内，超出损耗部分由投标人承担；损耗小于3%，节约部分的50%作为投标人奖励。","m3",180,60,10800]
[22,"室外散水及坡道","1.散水类型：综合考虑\n2.混凝土等级：综合考虑（混凝土甲供）\n3.砼现场泵送采用的机械种类及方式：投标人自行确定，泵送费用和泵送运距已综合考虑在单价中                                                                                                                                         4.材料场内运输、转运费用由投标人综合考虑，包含在投标报价中。                                                                                                                                                                     5.变形缝、沉降缝的切缝、留缝及灌缝工程量。  \n6.做法：满足设计及现行施工技术、质量验收规范要求                                                                                                                                                                                7.甲供砼材料损耗量控制在3%以内，超出损耗部分由投标人承担；损耗小于3%，节约部分的50%作为投标人奖励。                            \n","m3",10,40,400]
[23,"散水排水沟","1.材质：成品排水沟（含盖）\n2.规格型号：按设计施工图\n3.做法：满足设计和相关规范要求                                                                                  4.材料场内运输、转运费用已综合考虑在单价中","m",120,165,19800]
[24,"砼台阶","1.台阶类型：综合考虑\n2.混凝土等级：综合考虑（混凝土甲供）\n3.砼现场泵送采用的机械种类及方式：投标人自行确定，泵送费用和泵送运距已综合考虑在单价中                                                                                                                                         4.材料场内运输、转运费用由投标人综合考虑，包含在投标报价中。  \n5.做法：满足设计及现行施工技术、质量验收规范要求                                                                                                                                                                                6.甲供砼材料损耗量控制在3%以内，超出损耗部分由投标人承担；损耗小于3%，节约部分的50%作为投标人奖励。                                                                                                                               7.工程量按水平投影面积计算 ","m2",15,50,{"$f":"F26*E26","v":750}]
[25,"室外地坪","1.地坪类型：综合考虑\n2.混凝土等级：综合考虑（混凝土甲供）\n3.砼现场泵送采用的机械种类及方式：投标人自行确定，泵送费用和泵送运距已综合考虑在单价中                                                                                                                                         4.材料场内运输、转运费用由投标人综合考虑，包含在投标报价中。  \n5.做法：满足设计及现行施工技术、质量验收规范要求                                                                                                                                                                                6.甲供砼材料损耗量控制在3%以内，超出损耗部分由投标人承担；损耗小于3%，节约部分的50%作为投标人奖励。","m3",15,30,450]
[26,"垫层模板安、拆","1.支模高度：综合\n2.模板类型：木模、组合钢模板、竹胶合板等综合\n3.支架材料：钢管、竹、木支架综合，断面尺寸、材质、工艺等符合设计和施工验收规范要求\n4.本项目投标人应根据施工经验,现场实际情况和企业自身情况综合报价,不论采用何种支模方式均按报价执行                                                                5.材料场内运输、转运费用已综合考虑在单价中","m2",150,50,7500]
[27,"基础及承台模板安、拆","1.支模高度：综合\n2.模板类型：木模、组合钢模板、竹胶合板等综合\n3.支架材料：钢管、竹、木支架综合，断面尺寸、材质、工艺等符合设计和施工验收规范要求\n4.本项目投标人应根据施工经验,现场实际情况和企业自身情况综合报价,不论采用何种支模方式均按报价执行                                                                  5.材料场内运输、转运费用已综合考虑在单价中","m2",300,50,15000]
[28,"基础梁模板安、拆","1.支模高度：综合\n2.模板类型：木模、组合钢模板、竹胶合板等综合\n3.支架材料：钢管、竹、木支架综合，断面尺寸、材质、工艺等符合设计和施工验收规范要求\n4.本项目投标人应根据施工经验,现场实际情况和企业自身情况综合报价,不论采用何种支模方式均按报价执行                                                               5.材料场内运输、转运费用已综合考虑在单价中","m2",300,60,18000]
[29,"柱模板安、拆","1.支模高度：综合\n2.模板和超高模板类型：木模、组合钢模板、竹胶合板等综合\n3.支架材料：钢管、竹、木支架综合，断面尺寸、材质、工艺等符合设计和施工验收规范要求\n4.其他：单价已包括构件的超高模板费用等，投标人自行综合考虑\n5.本项目投标人应根据施工经验,现场实际情况和企业自身情况综合报价,不论采用何种支模方式均按报价执行 ，拆模后砼表面观感达到清水模要求                                                                6.材料场内运输、转运费用已综合考虑在单价中","m2",300,60,18000]
[30,"有梁板模板安、拆","1.支模高度：综合\n2.模板和超高模板类型：木模、组合钢模板、竹胶合板等综合\n3.支架材料：钢管、竹、木支架综合，断面尺寸、材质、工艺等符合设计和施工验收规范要求\n4.其他：单价已包括构件的超高模板费用等，投标人自行综合考虑\n5.本项目投标人应根据施工经验,现场实际情况和企业自身情况综合报价,不论采用何种支模方式均按报价执行 ，拆模后砼表面观感达到清水模要求                                                                6.材料场内运输、转运费用已综合考虑在单价中","m2",200,60,12000]
[31,"屋面有梁板模板安、拆（含斜屋面）","1.支模高度：综合\n2.模板和超高模板类型：木模、组合钢模板、竹胶合板等综合\n3.支架材料：钢管、竹、木支架综合，断面尺寸、材质、工艺等符合设计和施工验收规范要求\n4.其他：单价已包括构件的超高模板费用等，投标人自行综合考虑\n5.本项目投标人应根据施工经验,现场实际情况和企业自身情况综合报价,不论采用何种支模方式均按报价执行 ，拆模后砼表面观感达到清水模要求                                                                6.材料场内运输、转运费用已综合考虑在单价中","m2",260,80,20800]
[32,"墙模板安、拆","1.支模高度：综合\n2.模板和超高模板类型：木模、组合钢模板、竹胶合板等综合\n3.支架材料：钢管、竹、木支架综合，断面尺寸、材质、工艺等符合设计和施工验收规范要求\n4.其他：单价已包括构件的拉杆费用和超高模板费用等，投标人自行综合考虑\n5.本项目投标人应根据施工经验,现场实际情况和企业自身情况综合报价,不论采用何种支模方式均按报价执行 ，拆模后砼表面观感达到清水模要求                                                                6.材料场内运输、转运费用已综合考虑在单价中","m2",10,65,650]
[33,"构造柱模板","1.支模高度：综合\n2.模板和超高模板类型：木模、组合钢模板、竹胶合板等综合\n3.支架材料：钢管、竹、木支架综合，断面尺寸、材质、工艺等符合设计和施工验收规范要求\n4.其他：单价已包括构件的拉杆费用和超高模板费用等，投标人自行综合考虑\n5.本项目投标人应根据施工经验,现场实际情况和企业自身情况综合报价,不论采用何种支模方式均按报价执行 ，拆模后砼表面观感达到清水模要求                                                                7.材料场内运输、转运费用已综合考虑在单价中","m2",20,60,1200]
[34,"圈梁、过梁模板","1.支模高度：综合\n2.模板和超高模板类型：木模、组合钢模板、竹胶合板等综合\n3.支架材料：钢管、竹、木支架综合，断面尺寸、材质、工艺等符合设计和施工验收规范要求\n4.其他：单价已包括构件的拉杆费用和超高模板费用等，投标人自行综合考虑\n5.本项目投标人应根据施工经验,现场实际情况和企业自身情况综合报价,不论采用何种支模方式均按报价执行 ，拆模后砼表面观感达到清水模要求                                                                8.材料场内运输、转运费用已综合考虑在单价中","m2",10,60,600]
[35,"压顶模板","1.支模高度：综合\n2.模板和超高模板类型：木模、组合钢模板、竹胶合板等综合\n3.支架材料：钢管、竹、木支架综合，断面尺寸、材质、工艺等符合设计和施工验收规范要求\n4.其他：单价已包括构件的拉杆费用和超高模板费用等，投标人自行综合考虑\n5.本项目投标人应根据施工经验,现场实际情况和企业自身情况综合报价,不论采用何种支模方式均按报价执行 ，拆模后砼表面观感达到清水模要求                                                                9.材料场内运输、转运费用已综合考虑在单价中","m2",10,60,600]
[36,"砼台阶模板","1.支模高度：综合\n2.模板和超高模板类型：木模、组合钢模板、竹胶合板等综合\n3.支架材料：钢管、竹、木支架综合，断面尺寸、材质、工艺等符合设计和施工验收规范要求\n5.本项目投标人应根据施工经验,现场实际情况和企业自身情况综合报价,不论采用何种支模方式均按报价执行 ，拆模后砼表面观感达到清水模要求                                                                                                               7.材料场内运输、转运费用已综合考虑在单价中                                                                                                                                                                                     8.工程量按水平投影面积计算 ","m2",15,70,1050]
[37,"外脚手架","1.脚手架高度：综合                                                                                                                                                                                                                     2.脚手架类型：钢管脚手架 ，斜道、上料平台、安全网等投标人综合考虑，不再另行计算。                                                                                                                                                      3.脚手架材料：钢管、脚手板、安全网、水平防护、立面防护网的材质、工艺等符合相关安全及施工验收规范要求                                                                                                                                                             4.材料场内运输、转运费用已综合考虑在单价中","m2",335,22,7370]
[38,"预埋D20阻燃塑料管","1.名称：预埋电线管                                                                                                                                                                                                           2.管材型号：D20阻燃塑料管                                                                                                                                                                                                         3.预埋位置：板、梁、柱、墙等，详见设计                                                                                                                                                                                                     4.施工要求：满足施工及验收相关规范要求                                                                                                                                                                                                    5.材料场内运输、转运费用已综合考虑在单价中","m",100,5,500]
[39,"预埋D25阻燃塑料管","1.名称：预埋电线管                                                                                                                                                                                                             2.管材型号：D25阻燃塑料管                                                                                                                                                                                                        3.预埋位置：板、梁、柱、墙等，详见设计                                                                                                                                                                                           4.施工要求：满足施工及验收相关规范要求                                                                                                                                                                                            5.材料场内运输、转运费用已综合考虑在单价中","m",100,7,700]
[40,"预埋钢管 DN25","1.名称：预埋钢管                                                                                                                                                                                                                   2.管材型号：DN25热镀锌钢管                                                                                                                                                                                                        3.预埋位置：板、梁、柱、墙等，详见设计                                                                                                                                                                                                4.施工要求：满足施工及验收相关规范要求                                                                                                                                                                                                 5.材料场内运输、转运费用已综合考虑在单价中","m",10,20,200]
[41,"预埋 接线盒","1.名称：接线盒                                                                                                                                                                                                                      2.材质：PVC                                                                                                                                                                                                                       3.预埋位置：板、梁、柱、墙等，详见设计                                                                                                                                                                                        4.施工要求：满足施工及验收相关规范要求                                                                                                                                                                                                 5.材料场内运输、转运费用已综合考虑在单价中","个",10,4,40]
[" 合计",{"$nulls":5},{"$f":"SUM(G3:G43)","v":467890}]
["注：1、全费用综合单价，包括人工费、材料费、机械费、管理费、利润、除安全文明施工费外的总价措施费、大型机械进出场费及进出场外的其他单价措施费、降排水费、规费、销项增值税和附加税、弃土费等费用；以上工程量均为暂估量，结算工程量以现场收方为准，因为量差发生的合同价格调整，合同单价均不予以调整。\n2、现场安全环保文明施工管理要求：（1）由公司统一发放印有“兴绿园林”字样和LOGO的安全帽和反光背心，班组按实名制领取，使用完后交回项目部，否则按采购费用扣款，其余参照合同附件中安全环保管理协议执行。（2）现场雾炮机由甲方提供，投标单位需安排人员管理使用，人工费、油费及管理费用综合考虑到投标报价中，不单独计取。                                                                                                                                                                                                                             3、施工平台由投标人自行考虑施工，费用综合考虑到投标报价中。"]
["1.本次采用全费用单价报价形式，最高限价为4678790.00元，施工单位所报价高于最高限价的为无效报价，采购人不予接受。同时在工程量清单中公布最高费用单价限价，施工单位的全费用单价限价，施工单位的全费用单价也不得超过最高全费用单价限价，否则，采购人将予以拒绝。"]
["2.最终结算时，以经审计单位核定的实际完成工程量及有效的竣工资料进行计算，全费用单价按中选的全费用单价进行计价。"]
["3.开具的发票为增值税专票（税率为9%）。"]

{"sheet":"3#建筑物结构","index":2,"n_rows":48,"n_cols":10,"rows_kept":48,"merged":[[0,0,0,9],[43,0,43,5],[44,0,44,9],[45,0,45,9],[46,0,46,9],[47,0,47,9]]}
["2023年“P”项目3#建筑物结构清单与报价表"]
["序号","项目名称","项目特征描述","计量\r\n单位","工程量","全费用单价限价（元）","限价合价","班组所报全费用单价（元）","合价（元）","备注"]
[1,"基础土石方开挖","1.基础类型：综合考虑\n2.挖土深度：综合\n3.挖土方式：由投标人自行考虑，包含在投标报价中。\n4.场内转运：由投标人自行考虑，包含在投标报价中。                                                                                                                                                                             5.做法：满足设计及现行施工技术、质量验收规范要求  \n6.投标人应对施工现场及周边条件进行仔细勘察，充分考虑各种因素，综合报价。","m3",{"$f":"'1#楼建筑工程'!E3","v":220},15,{"$f":"F3*E3","v":3300}]
[2,"基础土石方回填（含房心回填）","1.基础类型：综合考虑\n2.回填深度：综合\n3.回填方式：由投标人自行考虑，满足设计及现行施工技术、质量验收规范要求，包含在投标报价中。\n4.场内转运：由投标人自行考虑，包含在投标报价中。                                                                                                                                                                                \n5.投标人应对施工现场及周边条件进行仔细勘察，充分考虑各种因素，综合报价。\n6.回填打夯后的碾压密实度应达到设计和规范要求。","m3",{"$f":"'1#楼建筑工程'!E4","v":110},8,880]
[3,"碎石垫层","1.垫层类型：碎石垫层\n2.垫层厚度及材质要求：详设计施工图\n3.材料运输方式及运距：投标人自行确定\n4.做法：满足设计及现行施工技术、质量验收规范要求                                                                                                                                                                        5.材料场内运输、转运费用已综合考虑在单价中                                     ","m3",{"$f":"'1#楼建筑工程'!E5","v":5},180,900]
[4,"现浇钢筋混凝土垫层","1.垫层类型：综合考虑\n2.混凝土等级：综合考虑（混凝土甲供）\n3.砼现场泵送采用的机械种类及方式：投标人自行确定，泵送费用和泵送运距已综合考虑在单价中                                                                                                                                           4.材料场内运输、转运费用由投标人综合考虑，包含在投标报价中。  \n5.做法：满足设计及现行施工技术、质量验收规范要求                                                                                                                                                                               6.甲供砼材料损耗量控制在3%以内，超出损耗部分由投标人承担；损耗小于3%，节约部分的50%作为投标人奖励。","m3",{"$f":"'1#楼建筑工程'!E6","v":30},60,1800]
[5,"现浇钢筋混凝土基础及承台","1.基础及承台类型：综合考虑\n2.混凝土等级：综合考虑（混凝土甲供）\n3.砼现场泵送采用的机械种类及方式：投标人自行确定，泵送费用和泵送运距已综合考虑在单价中                                                                                                                                     4.材料场内运输、转运费用由投标人综合考虑，包含在投标报价中。  \n5.做法：满足设计及现行施工技术、质量验收规范要求                                                                                                                                                                                     6.甲供砼材料损耗量控制在3%以内，超出损耗部分由投标人承担；损耗小于3%，节约部分的50%作为投标人奖励。","m3",{"$f":"'1#楼建筑工程'!E7","v":70},60,4200]
[6,"现浇钢筋混凝土基础梁","1.基础梁类型：综合考虑\n2.混凝土等级：综合考虑（混凝土甲供）\n3.砼现场泵送采用的机械种类及方式：投标人自行确定，泵送费用和泵送运距已综合考虑在单价中                                                                                                                                          4.材料场内运输、转运费用由投标人综合考虑，包含在投标报价中。  \n5.做法：满足设计及现行施工技术、质量验收规范要求                                                                                                                                                                               6.甲供砼材料损耗量控制在3%以内，超出损耗部分由投标人承担；损耗小于3%，节约部分的50%作为投标人奖励。","m3",{"$f":"'1#楼建筑工程'!E8","v":60},65,3900]
[7,"现浇钢筋混凝土柱","1.混凝土柱类型及高度：综合考虑\n2.混凝土等级：综合考虑（混凝土甲供）\n3.砼现场泵送采用的机械种类及方式：投标人自行确定，泵送费用和泵送运距已综合考虑在单价中                                                                                                                                         4.材料场内运输、转运费用由投标人综合考虑，包含在投标报价中。  \n5.做法：满足设计及现行施工技术、质量验收规范要求                                                                                                                                                                                6.甲供砼材料损耗量控制在3%以内，超出损耗部分由投标人承担；损耗小于3%，节约部分的50%作为投标人奖励。","m3",{"$f":"'1#楼建筑工程'!E9","v":15},65,975]
[8,"现浇钢筋混凝土有梁板","1.混凝土有梁板类型及高度：综合考虑\n2.混凝土等级：综合考虑（混凝土甲供）\n3.砼现场泵送采用的机械种类及方式：投标人自行确定，泵送费用和泵送运距已综合考虑在单价中                                                                                                                                         4.材料场内运输、转运费用由投标人综合考虑，包含在投标报价中。  \n5.做法：满足设计及现行施工技术、质量验收规范要求                                                                                                                                                                                6.甲供砼材料损耗量控制在3%以内，超出损耗部分由投标人承担；损耗小于3%，节约部分的50%作为投标人奖励。","m3",{"$f":"'1#楼建筑工程'!E10","v":50},65,3250]
[9,"现浇钢筋混凝土墙","1.混凝土墙类型及高度：综合考虑\n2.混凝土等级：综合考虑（混凝土甲供）\n3.砼现场泵送采用的机械种类及方式：投标人自行确定，泵送费用和泵送运距已综合考虑在单价中                                                                                                                                         4.材料场内运输、转运费用由投标人综合考虑，包含在投标报价中。  \n5.做法：满足设计及现行施工技术、质量验收规范要求                                                                                                                                                                                6.甲供砼材料损耗量控制在3%以内，超出损耗部分由投标人承担；损耗小于3%，节约部分的50%作为投标人奖励。","m3",{"$f":"'1#楼建筑工程'!E11","v":5},65,325]
[10,"地下室底板","1.混凝底板类型：综合考虑\n2.混凝土等级：综合考虑（混凝土甲供）\n3.砼现场泵送采用的机械种类及方式：投标人自行确定，泵送费用和泵送运距已综合考虑在单价中                                                                                                                                         4.材料场内运输、转运费用由投标人综合考虑，包含在投标报价中。  \n5.做法：满足设计及现行施工技术、质量验收规范要求                                                                                                                                                                                6.甲供砼材料损耗量控制在3%以内，超出损耗部分由投标人承担；损耗小于3%，节约部分的50%作为投标人奖励。","m3",{"$f":"'1#楼建筑工程'!E12","v":50},60,3000]
[11,"混凝土板屋面（含斜面）","1.混凝土板屋面类型及高度：综合考虑\n2.混凝土等级：综合考虑（混凝土甲供）\n3.砼现场泵送采用的机械种类及方式：投标人自行确定，泵送费用和泵送运距已综合考虑在单价中                                                                                                                                         4.材料场内运输、转运费用由投标人综合考虑，包含在投标报价中。  \n5.做法：满足设计及现行施工技术、质量验收规范要求                                                                                                                                                                                6.甲供砼材料损耗量控制在3%以内，超出损耗部分由投标人承担；损耗小于3%，节约部分的50%作为投标人奖励。","m3",{"$f":"'1#楼建筑工程'!E13","v":30},75,2250]
[12,"砼构造柱","1.构造柱尺寸及高度：综合考虑\n2.混凝土等级：综合考虑（混凝土甲供）\n3.砼现场泵送采用的机械种类及方式：投标人自行确定，泵送费用和泵送运距已综合考虑在单价中                                                                                                                                         4.材料场内运输、转运费用由投标人综合考虑，包含在投标报价中。  \n5.做法：满足设计及现行施工技术、质量验收规范要求                                                                                                                                                                                6.甲供砼材料损耗量控制在3%以内，超出损耗部分由投标人承担；损耗小于3%，节约部分的50%作为投标人奖励。","m3",{"$f":"'1#楼建筑工程'!E14","v":10},75,750]
[13,"砼圈梁、过梁","1.构件尺寸及高度：综合考虑\n2.混凝土等级：综合考虑（混凝土甲供）\n3.砼现场泵送采用的机械种类及方式：投标人自行确定，泵送费用和泵送运距已综合考虑在单价中                                                                                                                                         4.材料场内运输、转运费用由投标人综合考虑，包含在投标报价中。  \n5.做法：满足设计及现行施工技术、质量验收规范要求                                                                                                                                                                                6.甲供砼材料损耗量控制在3%以内，超出损耗部分由投标人承担；损耗小于3%，节约部分的50%作为投标人奖励。","m3",{"$f":"'1#楼建筑工程'!E15","v":5},75,375]
[14,"砼压顶","1.砼压顶尺寸：综合考虑\n2.混凝土等级：综合考虑（混凝土甲供）\n3.砼现场泵送采用的机械种类及方式：投标人自行确定，泵送费用和泵送运距已综合考虑在单价中                                                                                                                                         4.材料场内运输、转运费用由投标人综合考虑，包含在投标报价中。  \n5.做法：满足设计及现行施工技术、质量验收规范要求                                                                                                                                                                                6.甲供砼材料损耗量控制在3%以内，超出损耗部分由投标人承担；损耗小于3%，节约部分的50%作为投标人奖励。","m3",{"$f":"'1#楼建筑工程'!E16","v":5},75,375]
[15,"现浇构件钢筋 HRB400E直径≤φ10","1.钢筋种类、规格：HRB400EΦ10以内\n2.投标人综合考虑制作、安装及埋设的方式，无论采用预留、植筋或其他方式施工,其所有费用均包括在所报综合单价中不再另行计取\n3.做法：满足设计及现行施工技术、质量验收规范要求                                                 4.材料场内运输、转运费用已综合考虑在单价中","T",{"$f":"'1#楼建筑工程'!E17","v":10},6000,60000]
[16,"现浇构件钢筋 HRB400E直径φ12～14","1.钢筋种类、规格：螺纹钢HRB400E φ12～14\n2.投标人综合考虑制作、安装及埋设的方式，无论采用预留、植筋或其他方式施工,其所有费用均包括在所报综合单价中不再另行计取\n3.做法：满足设计及现行施工技术、质量验收规范要求                                             4.材料场内运输、转运费用已综合考虑在单价中","T",{"$f":"'1#楼建筑工程'!E18","v":20},6000,120000]
[17,"现浇构件钢筋 HRB400E直径≥φ16","1.钢筋种类、规格：HRB400E直径≥φ16\n2.投标人综合考虑制作、安装及埋设的方式，无论采用预留、植筋或其他方式施工,其所有费用均包括在所报综合单价中不再另行计取\n3.做法：满足设计及现行施工技术、质量验收规范要求                                              4.材料场内运输、转运费用已综合考虑在单价中","T",{"$f":"'1#楼建筑工程'!E19","v":15},6000,90000]
[18,"页岩实心砖墙","1.砖品种、规格、强度等级：页岩实心砖\n2.墙体尺寸：详设计施工图\n3.砂浆强度等级：M7.5干混砂浆\n4.砂浆拌和料要求：预拌干混砂浆，此单价已包含砂浆运输，由投标人综合考虑\n5.做法：满足设计及现行施工技术、质量验收规范要求                                             6.材料场内运输、转运费用已综合考虑在单价中","m3",{"$f":"'1#楼建筑工程'!E20","v":30},580,17400]
[19,"加气混凝土砌块墙 ","1.砖品种、规格、强度等级：加气混凝土砌块\n2.墙体尺寸：详设计施工图\n3.砂浆强度等级：M7.5干混砂浆\n4.砂浆拌和料要求：预拌干混砂浆，此单价已包含砂浆运输，由投标人综合考虑\n5.做法：满足设计及现行施工技术、质量验收规范要求                                             7.材料场内运输、转运费用已综合考虑在单价中","m3",{"$f":"'1#楼建筑工程'!E21","v":20},630,12600]
[20,"烧结多孔砖墙","1.砖品种、规格、强度等级：烧结多孔砖\n2.墙体尺寸：详设计施工图\n3.砂浆强度等级：M7.5干混砂浆\n4.砂浆拌和料要求：预拌干混砂浆，此单价已包含砂浆运输，由投标人综合考虑\n5.做法：满足设计及现行施工技术、质量验收规范要求                                             8.材料场内运输、转运费用已综合考虑在单价中","m3",{"$f":"'1#楼建筑工程'!E22","v":10},520,5200]
[21,"混凝土楼地面","1.楼地面类型：综合考虑\n2.混凝土等级：综合考虑（混凝土甲供）\n3.砼现场泵送采用的机械种类及方式：投标人自行确定，泵送费用和泵送运距已综合考虑在单价中                                                                                                                                         4.材料场内运输、转运费用由投标人综合考虑，包含在投标报价中。  \n5.做法：满足设计及现行施工技术、质量验收规范要求                                                                                                                                                                                6.甲供砼材料损耗量控制在3%以内，超出损耗部分由投标人承担；损耗小于3%，节约部分的50%作为投标人奖励。","m3",{"$f":"'1#楼建筑工程'!E23","v":180},60,10800]
[22,"室外散水及坡道","1.散水类型：综合考虑\n2.混凝土等级：综合考虑（混凝土甲供）\n3.砼现场泵送采用的机械种类及方式：投标人自行确定，泵送费用和泵送运距已综合考虑在单价中                                                                                                                                         4.材料场内运输、转运费用由投标人综合考虑，包含在投标报价中。                                                                                                                                                                     5.变形缝、沉降缝的切缝、留缝及灌缝工程量。  \n6.做法：满足设计及现行施工技术、质量验收规范要求                                                                                                                                                                                7.甲供砼材料损耗量控制在3%以内，超出损耗部分由投标人承担；损耗小于3%，节约部分的50%作为投标人奖励。                            ","m3",{"$f":"'1#楼建筑工程'!E24","v":10},40,400]
[23,"散水排水沟","1.材质：成品排水沟（含盖）\n2.规格型号：按设计施工图\n3.做法：满足设计和相关规范要求                                                                                  4.材料场内运输、转运费用已综合考虑在单价中","m",{"$f":"'1#楼建筑工程'!E25","v":120},165,19800]
[24,"砼台阶","1.台阶类型：综合考虑\n2.混凝土等级：综合考虑（混凝土甲供）\n3.砼现场泵送采用的机械种类及方式：投标人自行确定，泵送费用和泵送运距已综合考虑在单价中                                                                                                                                         4.材料场内运输、转运费用由投标人综合考虑，包含在投标报价中。  \n5.做法：满足设计及现行施工技术、质量验收规范要求                                                                                                                                                                                6.甲供砼材料损耗量控制在3%以内，超出损耗部分由投标人承担；损耗小于3%，节约部分的50%作为投标人奖励。                                                                                                                               7.工程量按水平投影面积计算 ","m2",{"$f":"'1#楼建筑工程'!E26","v":15},50,750]
[25,"室外地坪","1.地坪类型：综合考虑\n2.混凝土等级：综合考虑（混凝土甲供）\n3.砼现场泵送采用的机械种类及方式：投标人自行确定，泵送费用和泵送运距已综合考虑在单价中                                                                                                                                         4.材料场内运输、转运费用由投标人综合考虑，包含在投标报价中。  \n5.做法：满足设计及现行施工技术、质量验收规范要求                                                                                                                                                                                6.甲供砼材料损耗量控制在3%以内，超出损耗部分由投标人承担；损耗小于3%，节约部分的50%作为投标人奖励。","m3",{"$f":"'1#楼建筑工程'!E27","v":15},30,450]
[26,"垫层模板安、拆","1.支模高度：综合\n2.模板类型：木模、组合钢模板、竹胶合板等综合\n3.支架材料：钢管、竹、木支架综合，断面尺寸、材质、工艺等符合设计和施工验收规范要求\n4.本项目投标人应根据施工经验,现场实际情况和企业自身情况综合报价,不论采用何种支模方式均按报价执行                                                                5.材料场内运输、转运费用已综合考虑在单价中","m2",{"$f":"'1#楼建筑工程'!E28","v":150},50,7500]
[27,"基础及承台模板安、拆","1.支模高度：综合\n2.模板类型：木模、组合钢模板、竹胶合板等综合\n3.支架材料：钢管、竹、木支架综合，断面尺寸、材质、工艺等符合设计和施工验收规范要求\n4.本项目投标人应根据施工经验,现场实际情况和企业自身情况综合报价,不论采用何种支模方式均按报价执行                                                                  5.材料场内运输、转运费用已综合考虑在单价中","m2",{"$f":"'1#楼建筑工程'!E29","v":300},50,15000]
[28,"基础梁模板安、拆","1.支模高度：综合\n2.模板类型：木模、组合钢模板、竹胶合板等综合\n3.支架材料：钢管、竹、木支架综合，断面尺寸、材质、工艺等符合设计和施工验收规范要求\n4.本项目投标人应根据施工经验,现场实际情况和企业自身情况综合报价,不论采用何种支模方式均按报价执行                                                               5.材料场内运输、转运费用已综合考虑在单价中","m2",{"$f":"'1#楼建筑工程'!E30","v":300},60,18000]
[29,"柱模板安、拆","1.支模高度：综合\n2.模板和超高模板类型：木模、组合钢模板、竹胶合板等综合\n3.支架材料：钢管、竹、木支架综合，断面尺寸、材质、工艺等符合设计和施工验收规范要求\n4.其他：单价已包括构件的超高模板费用等，投标人自行综合考虑\n5.本项目投标人应根据施工经验,现场实际情况和企业自身情况综合报价,不论采用何种支模方式均按报价执行 ，拆模后砼表面观感达到清水模要求                                                                6.材料场内运输、转运费用已综合考虑在单价中","m2",{"$f":"'1#楼建筑工程'!E31","v":300},60,18000]
[30,"有梁板模板安、拆","1.支模高度：综合\n2.模板和超高模板类型：木模、组合钢模板、竹胶合板等综合\n3.支架材料：钢管、竹、木支架综合，断面尺寸、材质、工艺等符合设计和施工验收规范要求\n4.其他：单价已包括构件的超高模板费用等，投标人自行综合考虑\n5.本项目投标人应根据施工经验,现场实际情况和企业自身情况综合报价,不论采用何种支模方式均按报价执行 ，拆模后砼表面观感达到清水模要求                                                                6.材料场内运输、转运费用已综合考虑在单价中","m2",{"$f":"'1#楼建筑工程'!E32","v":200},60,12000]
[31,"屋面有梁板模板安、拆（含斜屋面）","1.支模高度：综合\n2.模板和超高模板类型：木模、组合钢模板、竹胶合板等综合\n3.支架材料：钢管、竹、木支架综合，断面尺寸、材质、工艺等符合设计和施工验收规范要求\n4.其他：单价已包括构件的超高模板费用等，投标人自行综合考虑\n5.本项目投标人应根据施工经验,现场实际情况和企业自身情况综合报价,不论采用何种支模方式均按报价执行 ，拆模后砼表面观感达到清水模要求                                                                6.材料场内运输、转运费用已综合考虑在单价中","m2",{"$f":"'1#楼建筑工程'!E33","v":260},80,20800]
[32,"墙模板安、拆","1.支模高度：综合\n2.模板和超高模板类型：木模、组合钢模板、竹胶合板等综合\n3.支架材料：钢管、竹、木支架综合，断面尺寸、材质、工艺等符合设计和施工验收规范要求\n4.其他：单价已包括构件的拉杆费用和超高模板费用等，投标人自行综合考虑\n5.本项目投标人应根据施工经验,现场实际情况和企业自身情况综合报价,不论采用何种支模方式均按报价执行 ，拆模后砼表面观感达到清水模要求                                                                6.材料场内运输、转运费用已综合考虑在单价中","m2",{"$f":"'1#楼建筑工程'!E34","v":10},65,650]
[33,"构造柱模板","1.支模高度：综合\n2.模板和超高模板类型：木模、组合钢模板、竹胶合板等综合\n3.支架材料：钢管、竹、木支架综合，断面尺寸、材质、工艺等符合设计和施工验收规范要求\n4.其他：单价已包括构件的拉杆费用和超高模板费用等，投标人自行综合考虑\n5.本项目投标人应根据施工经验,现场实际情况和企业自身情况综合报价,不论采用何种支模方式均按报价执行 ，拆模后砼表面观感达到清水模要求                                                                7.材料场内运输、转运费用已综合考虑在单价中","m2",{"$f":"'1#楼建筑工程'!E35","v":20},60,1200]
[34,"圈梁、过梁模板","1.支模高度：综合\n2.模板和超高模板类型：木模、组合钢模板、竹胶合板等综合\n3.支架材料：钢管、竹、木支架综合，断面尺寸、材质、工艺等符合设计和施工验收规范要求\n4.其他：单价已包括构件的拉杆费用和超高模板费用等，投标人自行综合考虑\n5.本项目投标人应根据施工经验,现场实际情况和企业自身情况综合报价,不论采用何种支模方式均按报价执行 ，拆模后砼表面观感达到清水模要求                                                                8.材料场内运输、转运费用已综合考虑在单价中","m2",{"$f":"'1#楼建筑工程'!E36","v":10},60,600]
[35,"压顶模板","1.支模高度：综合\n2.模板和超高模板类型：木模、组合钢模板、竹胶合板等综合\n3.支架材料：钢管、竹、木支架综合，断面尺寸、材质、工艺等符合设计和施工验收规范要求\n4.其他：单价已包括构件的拉杆费用和超高模板费用等，投标人自行综合考虑\n5.本项目投标人应根据施工经验,现场实际情况和企业自身情况综合报价,不论采用何种支模方式均按报价执行 ，拆模后砼表面观感达到清水模要求                                                                9.材料场内运输、转运费用已综合考虑在单价中","m2",{"$f":"'1#楼建筑工程'!E37","v":10},60,600]
[36,"砼台阶模板","1.支模高度：综合\n2.模板和超高模板类型：木模、组合钢模板、竹胶合板等综合\n3.支架材料：钢管、竹、木支架综合，断面尺寸、材质、工艺等符合设计和施工验收规范要求\n5.本项目投标人应根据施工经验,现场实际情况和企业自身情况综合报价,不论采用何种支模方式均按报价执行 ，拆模后砼表面观感达到清水模要求                                                                                                               7.材料场内运输、转运费用已综合考虑在单价中                                                                                                                                                                                     8.工程量按水平投影面积计算 ","m2",{"$f":"'1#楼建筑工程'!E38","v":15},70,1050]
[37,"外脚手架","1.脚手架高度：综合                                                                                                                                                                                                                     2.脚手架类型：钢管脚手架 ，斜道、上料平台、安全网等投标人综合考虑，不再另行计算。                                                                                                                                                      3.脚手架材料：钢管、脚手板、安全网、水平防护、立面防护网的材质、工艺等符合相关安全及施工验收规范要求                                                                                                                                                             4.材料场内运输、转运费用已综合考虑在单价中","m2",{"$f":"'1#楼建筑工程'!E39","v":335},22,7370]
[38,"预埋D20阻燃塑料管","1.名称：预埋电线管                                                                                                                                                                                                           2.管材型号：D20阻燃塑料管                                                                                                                                                                                                         3.预埋位置：板、梁、柱、墙等，详见设计                                                                                                                                                                                                     4.施工要求：满足施工及验收相关规范要求                                                                                                                                                                                                    5.材料场内运输、转运费用已综合考虑在单价中","m",{"$f":"'1#楼建筑工程'!E40","v":100},5,500]
[39,"预埋D25阻燃塑料管","1.名称：预埋电线管                                                                                                                                                                                                             2.管材型号：D25阻燃塑料管                                                                                                                                                                                                        3.预埋位置：板、梁、柱、墙等，详见设计                                                                                                                                                                                           4.施工要求：满足施工及验收相关规范要求                                                                                                                                                                                            5.材料场内运输、转运费用已综合考虑在单价中","m",{"$f":"'1#楼建筑工程'!E41","v":100},7,700]
[40,"预埋钢管 DN25","1.名称：预埋钢管                                                                                                                                                                                                                   2.管材型号：DN25热镀锌钢管                                                                                                                                                                                                        3.预埋位置：板、梁、柱、墙等，详见设计                                                                                                                                                                                                4.施工要求：满足施工及验收相关规范要求                                                                                                                                                                                                 5.材料场内运输、转运费用已综合考虑在单价中","m",{"$f":"'1#楼建筑工程'!E42","v":10},20,200]
[41,"预埋 接线盒","1.名称：接线盒                                                                                                                                                                                                                      2.材质：PVC                                                                                                                                                                                                                       3.预埋位置：板、梁、柱、墙等，详见设计                                                                                                                                                                                        4.施工要求：满足施工及验收相关规范要求                                                                                                                                                                                                 5.材料场内运输、转运费用已综合考虑在单价中","个",{"$f":"'1#楼建筑工程'!E43","v":10},4,40]
[" 合计",{"$nulls":5},{"$f":"SUM(G3:G43)","v":467890}]
["注：1、全费用综合单价，包括人工费、材料费、机械费、管理费、利润、除安全文明施工费外的总价措施费、大型机械进出场费及进出场外的其他单价措施费、降排水费、规费、销项增值税和附加税、弃土费等费用；以上工程量均为暂估量，结算工程量以现场收方为准，因为量差发生的合同价格调整，合同单价均不予以调整。\n2、现场安全环保文明施工管理要求：（1）由公司统一发放印有“兴绿园林”字样和LOGO的安全帽和反光背心，班组按实名制领取，使用完后交回项目部，否则按采购费用扣款，其余参照合同附件中安全环保管理协议执行。（2）现场雾炮机由甲方提供，投标单位需安排人员管理使用，人工费、油费及管理费用综合考虑到投标报价中，不单独计取。                                                                                                                                                                                                                             3、施工平台由投标人自行考虑施工，费用综合考虑到投标报价中。"]
["1.本次采用全费用单价报价形式，最高限价为467890.00元，施工单位所报价高于最高限价的为无效报价，采购人不予接受。同时在工程量清单中公布最高费用单价限价，施工单位的全费用单价限价，施工单位的全费用单价也不得超过最高全费用单价限价，否则，采购人将予以拒绝。"]
["2.最终结算时，以经审计单位核定的实际完成工程量及有效的竣工资料进行计算，全费用单价按中选的全费用单价进行计价。"]
["3.开具的发票为增值税专票（税率为9%）。"]

{"sheet":"5#建筑物结构","index":3,"n_rows":51,"n_cols":10,"rows_kept":51,"merged":[[0,0,0,9],[46,0,46,5],[47,0,47,9],[48,0,48,9],[49,0,49,9],[50,0,50,9]]}
["2023年“P”项目5#建筑物结构清单与报价表"]
["序号","项目名称","项目特征描述","计量\r\n单位","工程量","全费用单价限价（元）","限价合价","班组所报全费用单价（元）","合价（元）","备注"]
[1,"基础土石方开挖","1.基础类型：综合考虑\n2.挖土深度：综合\n3.挖土方式：由投标人自行考虑，包含在投标报价中。\n4.场内转运：由投标人自行考虑，包含在投标报价中。                                                                                                                                                                             5.做法：满足设计及现行施工技术、质量验收规范要求  \n6.投标人应对施工现场及周边条件进行仔细勘察，充分考虑各种因素，综合报价。","m3",900,15,{"$f":"F3*E3","v":13500}]
[2,"基础土石方回填（含房心回填）","1.基础类型：综合考虑\n2.回填深度：综合\n3.回填方式：由投标人自行考虑，满足设计及现行施工技术、质量验收规范要求，包含在投标报价中。\n4.场内转运：由投标人自行考虑，包含在投标报价中。                                                                                                                                                                                \n5.投标人应对施工现场及周边条件进行仔细勘察，充分考虑各种因素，综合报价。\n6.回填打夯后的碾压密实度应达到设计和规范要求。","m3",500,8,4000]
[3,"碎石垫层","1.垫层类型：碎石垫层\n2.垫层厚度及材质要求：详设计施工图\n3.材料运输方式及运距：投标人自行确定\n4.做法：满足设计及现行施工技术、质量验收规范要求                                                                                                                                                                            5.材料场内运输、转运费用已综合考虑在单价中                                     ","m3",10,180,1800]
[4,"现浇钢筋混凝土垫层","1.垫层类型：综合考虑\n2.混凝土等级：综合考虑（混凝土甲供）\n3.砼现场泵送采用的机械种类及方式：投标人自行确定，泵送费用和泵送运距已综合考虑在单价中                                                                                                                                           4.材料场内运输、转运费用由投标人综合考虑，包含在投标报价中。  \n5.做法：满足设计及现行施工技术、质量验收规范要求                                                                                                                                                                               6.甲供砼材料损耗量控制在3%以内，超出损耗部分由投标人承担；损耗小于3%，节约部分的50%作为投标人奖励。","m3",60,60,3600]
[5,"现浇钢筋混凝土基础及承台","1.基础及承台类型：综合考虑\n2.混凝土等级：综合考虑（混凝土甲供）\n3.砼现场泵送采用的机械种类及方式：投标人自行确定，泵送费用和泵送运距已综合考虑在单价中                                                                                                                                     4.材料场内运输、转运费用由投标人综合考虑，包含在投标报价中。  \n5.做法：满足设计及现行施工技术、质量验收规范要求                                                                                                                                                                                     6.甲供砼材料损耗量控制在3%以内，超出损耗部分由投标人承担；损耗小于3%，节约部分的50%作为投标人奖励。","m3",300,60,18000]
[6,"现浇钢筋混凝土基础梁","1.基础梁类型：综合考虑\n2.混凝土等级：综合考虑（混凝土甲供）\n3.砼现场泵送采用的机械种类及方式：投标人自行确定，泵送费用和泵送运距已综合考虑在单价中                                                                                                                                          4.材料场内运输、转运费用由投标人综合考虑，包含在投标报价中。  \n5.做法：满足设计及现行施工技术、质量验收规范要求                                                                                                                                                                               6.甲供砼材料损耗量控制在3%以内，超出损耗部分由投标人承担；损耗小于3%，节约部分的50%作为投标人奖励。","m3",120,65,7800]
[7,"现浇钢筋混凝土柱","1.混凝土柱类型及高度：综合考虑\n2.混凝土等级：综合考虑（混凝土甲供）\n3.砼现场泵送采用的机械种类及方式：投标人自行确定，泵送费用和泵送运距已综合考虑在单价中                                                                                                                                         4.材料场内运输、转运费用由投标人综合考虑，包含在投标报价中。  \n5.做法：满足设计及现行施工技术、质量验收规范要求                                                                                                                                                                                6.甲供砼材料损耗量控制在3%以内，超出损耗部分由投标人承担；损耗小于3%，节约部分的50%作为投标人奖励。","m3",50,65,3250]
[8,"现浇钢筋混凝土有梁板","1.混凝土有梁板类型及高度：综合考虑\n2.混凝土等级：综合考虑（混凝土甲供）\n3.砼现场泵送采用的机械种类及方式：投标人自行确定，泵送费用和泵送运距已综合考虑在单价中                                                                                                                                         4.材料场内运输、转运费用由投标人综合考虑，包含在投标报价中。  \n5.做法：满足设计及现行施工技术、质量验收规范要求                                                                                                                                                                                6.甲供砼材料损耗量控制在3%以内，超出损耗部分由投标人承担；损耗小于3%，节约部分的50%作为投标人奖励。","m3",150,65,9750]
[9,"现浇钢筋混凝土墙","1.混凝土墙类型及高度：综合考虑\n2.混凝土等级：综合考虑（混凝土甲供）\n3.砼现场泵送采用的机械种类及方式：投标人自行确定，泵送费用和泵送运距已综合考虑在单价中                                                                                                                                         4.材料场内运输、转运费用由投标人综合考虑，包含在投标报价中。  \n5.做法：满足设计及现行施工技术、质量验收规范要求                                                                                                                                                                                6.甲供砼材料损耗量控制在3%以内，超出损耗部分由投标人承担；损耗小于3%，节约部分的50%作为投标人奖励。","m3",35,65,2275]
[10,"地下室底板","1.混凝底板类型：综合考虑\n2.混凝土等级：综合考虑（混凝土甲供）\n3.砼现场泵送采用的机械种类及方式：投标人自行确定，泵送费用和泵送运距已综合考虑在单价中                                                                                                                                         4.材料场内运输、转运费用由投标人综合考虑，包含在投标报价中。  \n5.做法：满足设计及现行施工技术、质量验收规范要求                                                                                                                                                                                6.甲供砼材料损耗量控制在3%以内，超出损耗部分由投标人承担；损耗小于3%，节约部分的50%作为投标人奖励。","m3",220,60,13200]
[11,"混凝土板屋面（含斜面）","1.混凝土板屋面类型及高度：综合考虑\n2.混凝土等级：综合考虑（混凝土甲供）\n3.砼现场泵送采用的机械种类及方式：投标人自行确定，泵送费用和泵送运距已综合考虑在单价中                                                                                                                                         4.材料场内运输、转运费用由投标人综合考虑，包含在投标报价中。  \n5.做法：满足设计及现行施工技术、质量验收规范要求                                                                                                                                                                                6.甲供砼材料损耗量控制在3%以内，超出损耗部分由投标人承担；损耗小于3%，节约部分的50%作为投标人奖励。","m3",95,75,7125]
[12,"砼构造柱","1.构造柱尺寸及高度：综合考虑\n2.混凝土等级：综合考虑（混凝土甲供）\n3.砼现场泵送采用的机械种类及方式：投标人自行确定，泵送费用和泵送运距已综合考虑在单价中                                                                                                                                         4.材料场内运输、转运费用由投标人综合考虑，包含在投标报价中。  \n5.做法：满足设计及现行施工技术、质量验收规范要求                                                                                                                                                                                6.甲供砼材料损耗量控制在3%以内，超出损耗部分由投标人承担；损耗小于3%，节约部分的50%作为投标人奖励。","m3",20,75,1500]
[13,"砼圈梁、过梁","1.构件尺寸及高度：综合考虑\n2.混凝土等级：综合考虑（混凝土甲供）\n3.砼现场泵送采用的机械种类及方式：投标人自行确定，泵送费用和泵送运距已综合考虑在单价中                                                                                                                                         4.材料场内运输、转运费用由投标人综合考虑，包含在投标报价中。  \n5.做法：满足设计及现行施工技术、质量验收规范要求                                                                                                                                                                                6.甲供砼材料损耗量控制在3%以内，超出损耗部分由投标人承担；损耗小于3%，节约部分的50%作为投标人奖励。","m3",10,75,750]
[14,"砼压顶","1.砼压顶尺寸：综合考虑\n2.混凝土等级：综合考虑（混凝土甲供）\n3.砼现场泵送采用的机械种类及方式：投标人自行确定，泵送费用和泵送运距已综合考虑在单价中                                                                                                                                         4.材料场内运输、转运费用由投标人综合考虑，包含在投标报价中。  \n5.做法：满足设计及现行施工技术、质量验收规范要求                                                                                                                                                                                6.甲供砼材料损耗量控制在3%以内，超出损耗部分由投标人承担；损耗小于3%，节约部分的50%作为投标人奖励。","m3",10,75,750]
[15,"现浇构件钢筋 HRB400E直径≤φ10","1.钢筋种类、规格：HRB400EΦ10以内\n2.投标人综合考虑制作、安装及埋设的方式，无论采用预留、植筋或其他方式施工,其所有费用均包括在所报综合单价中不再另行计取\n3.做法：满足设计及现行施工技术、质量验收规范要求                                                 4.材料场内运输、转运费用已综合考虑在单价中","T",10,6000,60000]
[16,"现浇构件钢筋 HRB400E直径φ12～14","1.钢筋种类、规格：螺纹钢HRB400E φ12～14\n2.投标人综合考虑制作、安装及埋设的方式，无论采用预留、植筋或其他方式施工,其所有费用均包括在所报综合单价中不再另行计取\n3.做法：满足设计及现行施工技术、质量验收规范要求                                             4.材料场内运输、转运费用已综合考虑在单价中","T",30,6000,180000]
[17,"现浇构件钢筋 HRB400E直径≥φ16","1.钢筋种类、规格：HRB400E直径≥φ16\n2.投标人综合考虑制作、安装及埋设的方式，无论采用预留、植筋或其他方式施工,其所有费用均包括在所报综合单价中不再另行计取\n3.做法：满足设计及现行施工技术、质量验收规范要求                                              4.材料场内运输、转运费用已综合考虑在单价中","T",25,6000,150000]
[18,"页岩实心砖墙","1.砖品种、规格、强度等级：页岩实心砖\n2.墙体尺寸：详设计施工图\n3.砂浆强度等级：M7.5干混砂浆\n4.砂浆拌和料要求：预拌干混砂浆，此单价已包含砂浆运输，由投标人综合考虑\n5.做法：满足设计及现行施工技术、质量验收规范要求                                             6.材料场内运输、转运费用已综合考虑在单价中","m3",30,580,17400]
[19,"加气混凝土砌块墙 ","1.砖品种、规格、强度等级：加气混凝土砌块\n2.墙体尺寸：详设计施工图\n3.砂浆强度等级：M7.5干混砂浆\n4.砂浆拌和料要求：预拌干混砂浆，此单价已包含砂浆运输，由投标人综合考虑\n5.做法：满足设计及现行施工技术、质量验收规范要求                                             7.材料场内运输、转运费用已综合考虑在单价中","m3",20,630,12600]
[20,"烧结多孔砖墙","1.砖品种、规格、强度等级：烧结多孔砖\n2.墙体尺寸：详设计施工图\n3.砂浆强度等级：M7.5干混砂浆\n4.砂浆拌和料要求：预拌干混砂浆，此单价已包含砂浆运输，由投标人综合考虑\n5.做法：满足设计及现行施工技术、质量验收规范要求                                             8.材料场内运输、转运费用已综合考虑在单价中","m3",20,520,10400]
[21,"混凝土楼地面","1.楼地面类型：综合考虑\n2.混凝土等级：综合考虑（混凝土甲供）\n3.砼现场泵送采用的机械种类及方式：投标人自行确定，泵送费用和泵送运距已综合考虑在单价中                                                                                                                                         4.材料场内运输、转运费用由投标人综合考虑，包含在投标报价中。  \n5.做法：满足设计及现行施工技术、质量验收规范要求                                                                                                                                                                                6.甲供砼材料损耗量控制在3%以内，超出损耗部分由投标人承担；损耗小于3%，节约部分的50%作为投标人奖励。","m3",115,60,6900]
[22,"室外散水及坡道","1.散水类型：综合考虑\n2.混凝土等级：综合考虑（混凝土甲供）\n3.砼现场泵送采用的机械种类及方式：投标人自行确定，泵送费用和泵送运距已综合考虑在单价中                                                                                                                                         4.材料场内运输、转运费用由投标人综合考虑，包含在投标报价中。                                                                                                                                                                     5.变形缝、沉降缝的切缝、留缝及灌缝工程量。  \n6.做法：满足设计及现行施工技术、质量验收规范要求                                                                                                                                                                                7.甲供砼材料损耗量控制在3%以内，超出损耗部分由投标人承担；损耗小于3%，节约部分的50%作为投标人奖励。                            ","m3",60,40,2400]
[23,"散水排水沟","1.材质：成品排水沟（含盖）\n2.规格型号：按设计施工图\n3.做法：满足设计和相关规范要求                                                                                  4.材料场内运输、转运费用已综合考虑在单价中","m",160,165,26400]
[24,"砼台阶","1.台阶类型：综合考虑\n2.混凝土等级：综合考虑（混凝土甲供）\n3.砼现场泵送采用的机械种类及方式：投标人自行确定，泵送费用和泵送运距已综合考虑在单价中                                                                                                                                         4.材料场内运输、转运费用由投标人综合考虑，包含在投标报价中。  \n5.做法：满足设计及现行施工技术、质量验收规范要求                                                                                                                                                                                6.甲供砼材料损耗量控制在3%以内，超出损耗部分由投标人承担；损耗小于3%，节约部分的50%作为投标人奖励。                                                                                                                               7.工程量按水平投影面积计算 ","m2",100,50,5000]
[25,"室外地坪","1.地坪类型：综合考虑\n2.混凝土等级：综合考虑（混凝土甲供）\n3.砼现场泵送采用的机械种类及方式：投标人自行确定，泵送费用和泵送运距已综合考虑在单价中                                                                                                                                         4.材料场内运输、转运费用由投标人综合考虑，包含在投标报价中。  \n5.做法：满足设计及现行施工技术、质量验收规范要求                                                                                                                                                                                6.甲供砼材料损耗量控制在3%以内，超出损耗部分由投标人承担；损耗小于3%，节约部分的50%作为投标人奖励。\n","m3",30,30,900]
[26,"垫层模板安、拆","1.支模高度：综合\n2.模板类型：木模、组合钢模板、竹胶合板等综合\n3.支架材料：钢管、竹、木支架综合，断面尺寸、材质、工艺等符合设计和施工验收规范要求\n4.本项目投标人应根据施工经验,现场实际情况和企业自身情况综合报价,不论采用何种支模方式均按报价执行                                                                5.材料场内运输、转运费用已综合考虑在单价中","m2",200,50,10000]
[27,"基础及承台模板安、拆","1.支模高度：综合\n2.模板类型：木模、组合钢模板、竹胶合板等综合\n3.支架材料：钢管、竹、木支架综合，断面尺寸、材质、工艺等符合设计和施工验收规范要求\n4.本项目投标人应根据施工经验,现场实际情况和企业自身情况综合报价,不论采用何种支模方式均按报价执行                                                                  5.材料场内运输、转运费用已综合考虑在单价中","m2",500,50,25000]
[28,"基础梁模板安、拆","1.支模高度：综合\n2.模板类型：木模、组合钢模板、竹胶合板等综合\n3.支架材料：钢管、竹、木支架综合，断面尺寸、材质、工艺等符合设计和施工验收规范要求\n4.本项目投标人应根据施工经验,现场实际情况和企业自身情况综合报价,不论采用何种支模方式均按报价执行                                                               5.材料场内运输、转运费用已综合考虑在单价中","m2",400,60,24000]
[29,"柱模板安、拆","1.支模高度：综合\n2.模板和超高模板类型：木模、组合钢模板、竹胶合板等综合\n3.支架材料：钢管、竹、木支架综合，断面尺寸、材质、工艺等符合设计和施工验收规范要求\n4.其他：单价已包括构件的超高模板费用等，投标人自行综合考虑\n5.本项目投标人应根据施工经验,现场实际情况和企业自身情况综合报价,不论采用何种支模方式均按报价执行 ，拆模后砼表面观感达到清水模要求                                                                6.材料场内运输、转运费用已综合考虑在单价中","m2",400,60,24000]
[30,"非屋面有梁板模板安、拆","1.支模高度：综合\n2.模板和超高模板类型：木模、组合钢模板、竹胶合板等综合\n3.支架材料：钢管、竹、木支架综合，断面尺寸、材质、工艺等符合设计和施工验收规范要求\n4.其他：单价已包括构件的超高模板费用等，投标人自行综合考虑\n5.本项目投标人应根据施工经验,现场实际情况和企业自身情况综合报价,不论采用何种支模方式均按报价执行 ，拆模后砼表面观感达到清水模要求                                                                6.材料场内运输、转运费用已综合考虑在单价中","m2",500,60,30000]
[31,"屋面有梁板模板安、拆（含斜屋面）","1.支模高度：综合\n2.模板和超高模板类型：木模、组合钢模板、竹胶合板等综合\n3.支架材料：钢管、竹、木支架综合，断面尺寸、材质、工艺等符合设计和施工验收规范要求\n4.其他：单价已包括构件的超高模板费用等，投标人自行综合考虑\n5.本项目投标人应根据施工经验,现场实际情况和企业自身情况综合报价,不论采用何种支模方式均按报价执行 ，拆模后砼表面观感达到清水模要求                                                                6.材料场内运输、转运费用已综合考虑在单价中","m2",500,80,40000]
[32,"墙模板安、拆","1.支模高度：综合\n2.模板和超高模板类型：木模、组合钢模板、竹胶合板等综合\n3.支架材料：钢管、竹、木支架综合，断面尺寸、材质、工艺等符合设计和施工验收规范要求\n4.其他：单价已包括构件的拉杆费用和超高模板费用等，投标人自行综合考虑\n5.本项目投标人应根据施工经验,现场实际情况和企业自身情况综合报价,不论采用何种支模方式均按报价执行 ，拆模后砼表面观感达到清水模要求                                                                6.材料场内运输、转运费用已综合考虑在单价中","m2",30,65,1950]
[33,"构造柱模板","1.支模高度：综合\n2.模板和超高模板类型：木模、组合钢模板、竹胶合板等综合\n3.支架材料：钢管、竹、木支架综合，断面尺寸、材质、工艺等符合设计和施工验收规范要求\n4.其他：单价已包括构件的拉杆费用和超高模板费用等，投标人自行综合考虑\n5.本项目投标人应根据施工经验,现场实际情况和企业自身情况综合报价,不论采用何种支模方式均按报价执行 ，拆模后砼表面观感达到清水模要求                                                                7.材料场内运输、转运费用已综合考虑在单价中","m2",20,60,1200]
[34,"圈梁、过梁模板","1.支模高度：综合\n2.模板和超高模板类型：木模、组合钢模板、竹胶合板等综合\n3.支架材料：钢管、竹、木支架综合，断面尺寸、材质、工艺等符合设计和施工验收规范要求\n4.其他：单价已包括构件的拉杆费用和超高模板费用等，投标人自行综合考虑\n5.本项目投标人应根据施工经验,现场实际情况和企业自身情况综合报价,不论采用何种支模方式均按报价执行 ，拆模后砼表面观感达到清水模要求                                                                8.材料场内运输、转运费用已综合考虑在单价中","m2",10,60,600]
[35,"压顶模板","1.支模高度：综合\n2.模板和超高模板类型：木模、组合钢模板、竹胶合板等综合\n3.支架材料：钢管、竹、木支架综合，断面尺寸、材质、工艺等符合设计和施工验收规范要求\n4.其他：单价已包括构件的拉杆费用和超高模板费用等，投标人自行综合考虑\n5.本项目投标人应根据施工经验,现场实际情况和企业自身情况综合报价,不论采用何种支模方式均按报价执行 ，拆模后砼表面观感达到清水模要求                                                                9.材料场内运输、转运费用已综合考虑在单价中","m2",10,60,600]
[36,"砼台阶模板","1.支模高度：综合\n2.模板和超高模板类型：木模、组合钢模板、竹胶合板等综合\n3.支架材料：钢管、竹、木支架综合，断面尺寸、材质、工艺等符合设计和施工验收规范要求\n5.本项目投标人应根据施工经验,现场实际情况和企业自身情况综合报价,不论采用何种支模方式均按报价执行 ，拆模后砼表面观感达到清水模要求                                                                                                               7.材料场内运输、转运费用已综合考虑在单价中                                                                                                                                                                                     8.工程量按水平投影面积计算 ","m2",100,70,7000]
[37,"综合脚手架","1.脚手架高度：综合                                                                                                                                                                                                                     2.脚手架类型：钢管脚手架 ，斜道、上料平台、安全网等投标人综合考虑，不再另行计算。                                                                                                                                                      3.脚手架材料：钢管、脚手板、安全网、水平防护、立面防护网的材质、工艺等符合相关安全及施工验收规范要求                                                                                                                                                             4.材料场内运输、转运费用已综合考虑在单价中","m2",1439,22,31658]
[38,"预埋D20阻燃塑料管","1.名称：预埋电线管                                                                                                                                                                                                           2.管材型号：D20阻燃塑料管                                                                                                                                                                                                         3.预埋位置：板、梁、柱、墙等，详见设计                                                                                                                                                                                                     4.施工要求：满足施工及验收相关规范要求                                                                                                                                                                                                    5.材料场内运输、转运费用已综合考虑在单价中","m",100,5,500]
[39,"预埋D25阻燃塑料管","1.名称：预埋电线管                                                                                                                                                                                                             2.管材型号：D25阻燃塑料管                                                                                                                                                                                                        3.预埋位置：板、梁、柱、墙等，详见设计                                                                                                                                                                                           4.施工要求：满足施工及验收相关规范要求                                                                                                                                                                                            5.材料场内运输、转运费用已综合考虑在单价中","m",100,7,700]
[40,"预埋钢管 DN25","1.名称：预埋钢管                                                                                                                                                                                                                   2.管材型号：DN25热镀锌钢管                                                                                                                                                                                                        3.预埋位置：板、梁、柱、墙等，详见设计                                                                                                                                                                                                4.施工要求：满足施工及验收相关规范要求                                                                                                                                                                                                 5.材料场内运输、转运费用已综合考虑在单价中","m",20,20,400]
[41,"预埋 接线盒","1.名称：接线盒                                                                                                                                                                                                                      2.材质：PVC                                                                                                                                                                                                                       3.预埋位置：板、梁、柱、墙等，详见设计                                                                                                                                                                                        4.施工要求：满足施工及验收相关规范要求                                                                                                                                                                                                 5.材料场内运输、转运费用已综合考虑在单价中","个",20,4,80]
[42,"钢柱","1.柱类型 ：钢柱，形状综合考虑，焊接型钢；\n2.钢材品种与规格：满足设计要求；（包工包料）\n3.部位 ：满足设计要求\n4.安装/吊装方式：综合\n5.制作安装做法：满足设计及规范验收要求\n6.探伤要求 ：满足设计及规范要求\n7.防火要求 ：耐火等级应达到设计要求，钢柱、钢梁及钢支撑等均应采用防火涂料保护层，防火涂料类型应符合设计及规范要求。\n8.油漆品种、要求：水性无机富锌底漆,干膜厚度为35x2μm,环氧云铁中间漆,干膜厚度为60x1μm,丙烯酸聚氨酯面漆,干膜厚度为35x2μm,最小总干膜厚度200μm、喷防锈漆一道，灰色氟碳漆一道\n9.防锈要求：除锈等级为St3级,并达到35~55μm，防锈要求满足规范及设计要求\n10.其他：钢构件场内外运输、场内二次转运及多次转运、钢连接配件等，投标人综合考虑，包含在报价内。\n11.生产施工必须满足安全及环保要求，工程质量检测达到合格，并通过验收，配合甲方完成钢结构检测工作，检测费用由甲方承担。机械使用费、机械进出场费等已包含在综合单价内。                                                                         \n12.钢材及其他材料的耗损已综合考虑，含在报价内。","t",10,11000,110000]
[43,"钢梁","1.梁类型 ：钢梁曲面钢梁形状综合考虑，焊接型钢；\n2.钢材品种与规格：满足设计要求；（包工包料）\n3.部位 ：满足设计要求\n4.安装/吊装方式：综合\n5.制作安装做法：满足设计及规范验收要求\n6.探伤要求 ：满足设计及规范要求\n7.防火要求 ：耐火等级应达到设计要求，钢柱、钢梁及钢支撑等均应采用防火涂料保护层，防火涂料类型应符合设计及规范要求。\n8.油漆品种、要求：水性无机富锌底漆,干膜厚度为35x2μm,环氧云铁中间漆,干膜厚度为60x1μm,丙烯酸聚氨酯面漆,干膜厚度为35x2μm,最小总干膜厚度200μm、喷防锈漆一道，灰色氟碳漆一道\n9.防锈要求：除锈等级为St3级,并达到35~55μm，防锈要求满足规范及设计要求\n10.其他：钢构件场内外运输、场内二次转运及多次转运、钢连接配件等，投标人综合考虑，包含在报价内。\n11.生产施工必须满足安全及环保要求，工程质量检测达到合格，并通过验收，配合甲方完成钢结构检测工作，检测费用由甲方承担。机械使用费、机械进出场费等已包含在综合单价内。                              \n12.钢材及其他材料的耗损已综合考虑，含在报价内。","t",15,11000,165000]
[44,"零星钢构件","1.零星钢构件类型 ：形状综合考虑，焊接型钢；\n2.钢材品种与规格：满足设计要求；（包工包料）\n3.部位 ：满足设计要求\n4.安装/吊装方式：综合\n5.制作安装做法：满足设计及规范验收要求\n6.探伤要求 ：满足设计及规范要求\n7.防火要求 ：耐火等级应达到设计要求，钢柱、钢梁及钢支撑等均应采用防火涂料保护层，防火涂料类型应符合设计及规范要求。\n8.油漆品种、要求：水性无机富锌底漆,干膜厚度为35x2μm,环氧云铁中间漆,干膜厚度为60x1μm,丙烯酸聚氨酯面漆,干膜厚度为35x2μm,最小总干膜厚度200μm、喷防锈漆一道，灰色氟碳漆一道\n9.防锈要求：除锈等级为St3级,并达到35~55μm，防锈要求满足规范及设计要求\n10.其他：钢构件场内外运输、场内二次转运及多次转运、钢连接配件等，投标人综合考虑，包含在报价内。\n11.生产施工必须满足安全及环保要求，工程质量检测达到合格，并通过验收，配合甲方完成钢结构检测工作，检测费用由甲方承担。机械使用费、机械进出场费等已包含在综合单价内。                              \n12.钢材及其他材料的耗损已综合考虑，含在报价内。","t",3,11000,33000]
[" 合计",{"$nulls":5},{"$f":"SUM(G3:G46)","v":1064988}]
["注：1、全费用综合单价，包括人工费、材料费、机械费、管理费、利润、除安全文明施工费外的总价措施费、大型机械进出场费及进出场外的其他单价措施费、降排水费、规费、销项增值税和附加税、弃土费等费用；以上工程量均为暂估量，结算工程量以现场收方为准，因为量差发生的合同价格调整，合同单价均不予以调整。\n2、现场安全环保文明施工管理要求：（1）由公司统一发放印有“兴绿园林”字样和LOGO的安全帽和反光背心，班组按实名制领取，使用完后交回项目部，否则按采购费用扣款，其余参照合同附件中安全环保管理协议执行。（2）现场雾炮机由甲方提供，投标单位需安排人员管理使用，人工费、油费及管理费用综合考虑到投标报价中，不单独计取。                                                                                                                                                                                                                             3、施工平台由投标人自行考虑施工，费用综合考虑到投标报价中。"]
["1.本次采用全费用单价报价形式，最高限价为1064988.00元，施工单位所报价高于最高限价的为无效报价，采购人不予接受。同时在工程量清单中公布最高费用单价限价，施工单位的全费用单价限价，施工单位的全费用单价也不得超过最高全费用单价限价，否则，采购人将予以拒绝。"]
["2.最终结算时，以经审计单位核定的实际完成工程量及有效的竣工资料进行计算，全费用单价按中选的全费用单价进行计价。"]
["3.开具的发票为增值税专票（税率为9%）。"]

{"sheet":"异形廊架建筑物结构","index":4,"n_rows":48,"n_cols":10,"rows_kept":48,"merged":[[0,0,0,9],[43,0,43,5],[44,0,44,9],[45,0,45,9],[46,0,46,9],[47,0,47,9]]}
["2023年“P”项目异形廊架建筑物结构工程清单与报价表"]
["序号","项目名称","项目特征描述","计量\r\n单位","工程量","全费用单价限价（元）","限价合价","班组所报全费用单价（元）","合价（元）","备注"]
[1,"基础土石方开挖","1.基础类型：综合考虑\n2.挖土深度：综合\n3.挖土方式：由投标人自行考虑，包含在投标报价中。\n4.场内转运：由投标人自行考虑，包含在投标报价中。                                                                                                                                                                             5.做法：满足设计及现行施工技术、质量验收规范要求  \n6.投标人应对施工现场及周边条件进行仔细勘察，充分考虑各种因素，综合报价。","m3",1200,15,{"$f":"F3*E3","v":18000}]
[2,"基础土石方回填（含房心回填）","1.基础类型：综合考虑\n2.回填深度：综合\n3.回填方式：由投标人自行考虑，满足设计及现行施工技术、质量验收规范要求，包含在投标报价中。\n4.场内转运：由投标人自行考虑，包含在投标报价中。                                                                                                                                                                                \n5.投标人应对施工现场及周边条件进行仔细勘察，充分考虑各种因素，综合报价。\n6.回填打夯后的碾压密实度应达到设计和规范要求。","m3",850,8,6800]
[3,"碎石垫层","1.垫层类型：碎石垫层\n2.垫层厚度及材质要求：详设计施工图\n3.材料运输方式及运距：投标人自行确定\n4.做法：满足设计及现行施工技术、质量验收规范要求                                                                                                                                                                           5.材料场内运输、转运费用已综合考虑在单价中                                     ","m3",10,180,1800]
[4,"现浇钢筋混凝土垫层","1.垫层类型：综合考虑\n2.混凝土等级：综合考虑（混凝土甲供）\n3.砼现场泵送采用的机械种类及方式：投标人自行确定，泵送费用和泵送运距已综合考虑在单价中                                                                                                                                           4.材料场内运输、转运费用由投标人综合考虑，包含在投标报价中。  \n5.做法：满足设计及现行施工技术、质量验收规范要求                                                                                                                                                                               6.甲供砼材料损耗量控制在3%以内，超出损耗部分由投标人承担；损耗小于3%，节约部分的50%作为投标人奖励。","m3",90,60,5400]
[5,"现浇钢筋混凝土基础及承台","1.基础及承台类型：综合考虑\n2.混凝土等级：综合考虑（混凝土甲供）\n3.砼现场泵送采用的机械种类及方式：投标人自行确定，泵送费用和泵送运距已综合考虑在单价中                                                                                                                                     4.材料场内运输、转运费用由投标人综合考虑，包含在投标报价中。  \n5.做法：满足设计及现行施工技术、质量验收规范要求                                                                                                                                                                                     6.甲供砼材料损耗量控制在3%以内，超出损耗部分由投标人承担；损耗小于3%，节约部分的50%作为投标人奖励。","m3",360,60,21600]
[6,"现浇钢筋混凝土基础梁","1.基础梁类型：综合考虑\n2.混凝土等级：综合考虑（混凝土甲供）\n3.砼现场泵送采用的机械种类及方式：投标人自行确定，泵送费用和泵送运距已综合考虑在单价中                                                                                                                                          4.材料场内运输、转运费用由投标人综合考虑，包含在投标报价中。  \n5.做法：满足设计及现行施工技术、质量验收规范要求                                                                                                                                                                               6.甲供砼材料损耗量控制在3%以内，超出损耗部分由投标人承担；损耗小于3%，节约部分的50%作为投标人奖励。","m3",180,65,11700]
[7,"现浇钢筋混凝土柱","1.混凝土柱类型及高度：综合考虑\n2.混凝土等级：综合考虑（混凝土甲供）\n3.砼现场泵送采用的机械种类及方式：投标人自行确定，泵送费用和泵送运距已综合考虑在单价中                                                                                                                                         4.材料场内运输、转运费用由投标人综合考虑，包含在投标报价中。  \n5.做法：满足设计及现行施工技术、质量验收规范要求                                                                                                                                                                                6.甲供砼材料损耗量控制在3%以内，超出损耗部分由投标人承担；损耗小于3%，节约部分的50%作为投标人奖励。","m3",50,65,3250]
[8,"现浇钢筋混凝土有梁板","1.混凝土有梁板类型及高度：综合考虑\n2.混凝土等级：综合考虑（混凝土甲供）\n3.砼现场泵送采用的机械种类及方式：投标人自行确定，泵送费用和泵送运距已综合考虑在单价中                                                                                                                                         4.材料场内运输、转运费用由投标人综合考虑，包含在投标报价中。  \n5.做法：满足设计及现行施工技术、质量验收规范要求                                                                                                                                                                                6.甲供砼材料损耗量控制在3%以内，超出损耗部分由投标人承担；损耗小于3%，节约部分的50%作为投标人奖励。","m3",260,65,16900]
[9,"现浇钢筋混凝土墙","1.混凝土墙类型及高度：综合考虑\n2.混凝土等级：综合考虑（混凝土甲供）\n3.砼现场泵送采用的机械种类及方式：投标人自行确定，泵送费用和泵送运距已综合考虑在单价中                                                                                                                                         4.材料场内运输、转运费用由投标人综合考虑，包含在投标报价中。  \n5.做法：满足设计及现行施工技术、质量验收规范要求                                                                                                                                                                                6.甲供砼材料损耗量控制在3%以内，超出损耗部分由投标人承担；损耗小于3%，节约部分的50%作为投标人奖励。","m3",20,65,1300]
[10,"地下室底板","1.混凝底板类型：综合考虑\n2.混凝土等级：综合考虑（混凝土甲供）\n3.砼现场泵送采用的机械种类及方式：投标人自行确定，泵送费用和泵送运距已综合考虑在单价中                                                                                                                                         4.材料场内运输、转运费用由投标人综合考虑，包含在投标报价中。  \n5.做法：满足设计及现行施工技术、质量验收规范要求                                                                                                                                                                                6.甲供砼材料损耗量控制在3%以内，超出损耗部分由投标人承担；损耗小于3%，节约部分的50%作为投标人奖励。","m3",20,60,1200]
[11,"混凝土板屋面（含斜面）","1.混凝土板屋面类型及高度：综合考虑\n2.混凝土等级：综合考虑（混凝土甲供）\n3.砼现场泵送采用的机械种类及方式：投标人自行确定，泵送费用和泵送运距已综合考虑在单价中                                                                                                                                         4.材料场内运输、转运费用由投标人综合考虑，包含在投标报价中。  \n5.做法：满足设计及现行施工技术、质量验收规范要求                                                                                                                                                                                6.甲供砼材料损耗量控制在3%以内，超出损耗部分由投标人承担；损耗小于3%，节约部分的50%作为投标人奖励。","m3",260,75,19500]
[12,"砼构造柱","1.构造柱尺寸及高度：综合考虑\n2.混凝土等级：综合考虑（混凝土甲供）\n3.砼现场泵送采用的机械种类及方式：投标人自行确定，泵送费用和泵送运距已综合考虑在单价中                                                                                                                                         4.材料场内运输、转运费用由投标人综合考虑，包含在投标报价中。  \n5.做法：满足设计及现行施工技术、质量验收规范要求                                                                                                                                                                                6.甲供砼材料损耗量控制在3%以内，超出损耗部分由投标人承担；损耗小于3%，节约部分的50%作为投标人奖励。","m3",20,75,1500]
[13,"砼圈梁、过梁","1.构件尺寸及高度：综合考虑\n2.混凝土等级：综合考虑（混凝土甲供）\n3.砼现场泵送采用的机械种类及方式：投标人自行确定，泵送费用和泵送运距已综合考虑在单价中                                                                                                                                         4.材料场内运输、转运费用由投标人综合考虑，包含在投标报价中。  \n5.做法：满足设计及现行施工技术、质量验收规范要求                                                                                                                                                                                6.甲供砼材料损耗量控制在3%以内，超出损耗部分由投标人承担；损耗小于3%，节约部分的50%作为投标人奖励。","m3",10,75,750]
[14,"砼压顶","1.砼压顶尺寸：综合考虑\n2.混凝土等级：综合考虑（混凝土甲供）\n3.砼现场泵送采用的机械种类及方式：投标人自行确定，泵送费用和泵送运距已综合考虑在单价中                                                                                                                                         4.材料场内运输、转运费用由投标人综合考虑，包含在投标报价中。  \n5.做法：满足设计及现行施工技术、质量验收规范要求                                                                                                                                                                                6.甲供砼材料损耗量控制在3%以内，超出损耗部分由投标人承担；损耗小于3%，节约部分的50%作为投标人奖励。","m3",10,75,750]
[15,"现浇构件钢筋 HRB400E直径≤φ10","1.钢筋种类、规格：HRB400EΦ10以内\n2.投标人综合考虑制作、安装及埋设的方式，无论采用预留、植筋或其他方式施工,其所有费用均包括在所报综合单价中不再另行计取\n3.做法：满足设计及现行施工技术、质量验收规范要求                                                 4.材料场内运输、转运费用已综合考虑在单价中","T",10,6000,60000]
[16,"现浇构件钢筋 HRB400E直径φ12～14","1.钢筋种类、规格：螺纹钢HRB400E φ12～14\n2.投标人综合考虑制作、安装及埋设的方式，无论采用预留、植筋或其他方式施工,其所有费用均包括在所报综合单价中不再另行计取\n3.做法：满足设计及现行施工技术、质量验收规范要求                                             4.材料场内运输、转运费用已综合考虑在单价中","T",40,6000,240000]
[17,"现浇构件钢筋 HRB400E直径≥φ16","1.钢筋种类、规格：HRB400E直径≥φ16\n2.投标人综合考虑制作、安装及埋设的方式，无论采用预留、植筋或其他方式施工,其所有费用均包括在所报综合单价中不再另行计取\n3.做法：满足设计及现行施工技术、质量验收规范要求                                              4.材料场内运输、转运费用已综合考虑在单价中","T",35,6000,210000]
[18,"页岩实心砖墙","1.砖品种、规格、强度等级：页岩实心砖\n2.墙体尺寸：详设计施工图\n3.砂浆强度等级：M7.5干混砂浆\n4.砂浆拌和料要求：预拌干混砂浆，此单价已包含砂浆运输，由投标人综合考虑\n5.做法：满足设计及现行施工技术、质量验收规范要求                                             6.材料场内运输、转运费用已综合考虑在单价中","m3",50,580,29000]
[19,"加气混凝土砌块墙 ","1.砖品种、规格、强度等级：加气混凝土砌块\n2.墙体尺寸：详设计施工图\n3.砂浆强度等级：M7.5干混砂浆\n4.砂浆拌和料要求：预拌干混砂浆，此单价已包含砂浆运输，由投标人综合考虑\n5.做法：满足设计及现行施工技术、质量验收规范要求                                             7.材料场内运输、转运费用已综合考虑在单价中","m3",20,630,12600]
[20,"烧结多孔砖墙","1.砖品种、规格、强度等级：烧结多孔砖\n2.墙体尺寸：详设计施工图\n3.砂浆强度等级：M7.5干混砂浆\n4.砂浆拌和料要求：预拌干混砂浆，此单价已包含砂浆运输，由投标人综合考虑\n5.做法：满足设计及现行施工技术、质量验收规范要求                                             8.材料场内运输、转运费用已综合考虑在单价中","m3",10,520,5200]
[21,"混凝土楼地面","1.楼地面类型：综合考虑\n2.混凝土等级：综合考虑（混凝土甲供）\n3.砼现场泵送采用的机械种类及方式：投标人自行确定，泵送费用和泵送运距已综合考虑在单价中                                                                                                                                         4.材料场内运输、转运费用由投标人综合考虑，包含在投标报价中。  \n5.做法：满足设计及现行施工技术、质量验收规范要求                                                                                                                                                                                6.甲供砼材料损耗量控制在3%以内，超出损耗部分由投标人承担；损耗小于3%，节约部分的50%作为投标人奖励。","m3",150,60,9000]
[22,"室外散水及坡道","1.散水类型：综合考虑\n2.混凝土等级：综合考虑（混凝土甲供）\n3.砼现场泵送采用的机械种类及方式：投标人自行确定，泵送费用和泵送运距已综合考虑在单价中                                                                                                                                         4.材料场内运输、转运费用由投标人综合考虑，包含在投标报价中。                                                                                                                                                                     5.变形缝、沉降缝的切缝、留缝及灌缝工程量。  \n6.做法：满足设计及现行施工技术、质量验收规范要求                                                                                                                                                                                7.甲供砼材料损耗量控制在3%以内，超出损耗部分由投标人承担；损耗小于3%，节约部分的50%作为投标人奖励。                            \n","m3",30,40,1200]
[23,"散水排水沟","1.材质：成品排水沟（含盖）\n2.规格型号：按设计施工图\n3.做法：满足设计和相关规范要求                                                                                  4.材料场内运输、转运费用已综合考虑在单价中","m",220,165,36300]
[24,"砼台阶","1.台阶类型：综合考虑\n2.混凝土等级：综合考虑（混凝土甲供）\n3.砼现场泵送采用的机械种类及方式：投标人自行确定，泵送费用和泵送运距已综合考虑在单价中                                                                                                                                         4.材料场内运输、转运费用由投标人综合考虑，包含在投标报价中。  \n5.做法：满足设计及现行施工技术、质量验收规范要求                                                                                                                                                                                6.甲供砼材料损耗量控制在3%以内，超出损耗部分由投标人承担；损耗小于3%，节约部分的50%作为投标人奖励。                                                                                                                               7.工程量按水平投影面积计算 ","m2",10,50,500]
[25,"室外地坪","1.地坪类型：综合考虑\n2.混凝土等级：综合考虑（混凝土甲供）\n3.砼现场泵送采用的机械种类及方式：投标人自行确定，泵送费用和泵送运距已综合考虑在单价中                                                                                                                                         4.材料场内运输、转运费用由投标人综合考虑，包含在投标报价中。  \n5.做法：满足设计及现行施工技术、质量验收规范要求                                                                                                                                                                                6.甲供砼材料损耗量控制在3%以内，超出损耗部分由投标人承担；损耗小于3%，节约部分的50%作为投标人奖励。","m3",20,30,600]
[26,"垫层模板安、拆","1.支模高度：综合\n2.模板类型：木模、组合钢模板、竹胶合板等综合\n3.支架材料：钢管、竹、木支架综合，断面尺寸、材质、工艺等符合设计和施工验收规范要求\n4.本项目投标人应根据施工经验,现场实际情况和企业自身情况综合报价,不论采用何种支模方式均按报价执行                                                                5.材料场内运输、转运费用已综合考虑在单价中","m2",300,50,15000]
[27,"基础及承台模板安、拆","1.支模高度：综合\n2.模板类型：木模、组合钢模板、竹胶合板等综合\n3.支架材料：钢管、竹、木支架综合，断面尺寸、材质、工艺等符合设计和施工验收规范要求\n4.本项目投标人应根据施工经验,现场实际情况和企业自身情况综合报价,不论采用何种支模方式均按报价执行                                                                  5.材料场内运输、转运费用已综合考虑在单价中","m2",700,50,35000]
[28,"基础梁模板安、拆","1.支模高度：综合\n2.模板类型：木模、组合钢模板、竹胶合板等综合\n3.支架材料：钢管、竹、木支架综合，断面尺寸、材质、工艺等符合设计和施工验收规范要求\n4.本项目投标人应根据施工经验,现场实际情况和企业自身情况综合报价,不论采用何种支模方式均按报价执行                                                               5.材料场内运输、转运费用已综合考虑在单价中","m2",500,60,30000]
[29,"柱模板安、拆","1.支模高度：综合\n2.模板和超高模板类型：木模、组合钢模板、竹胶合板等综合\n3.支架材料：钢管、竹、木支架综合，断面尺寸、材质、工艺等符合设计和施工验收规范要求\n4.其他：单价已包括构件的超高模板费用等，投标人自行综合考虑\n5.本项目投标人应根据施工经验,现场实际情况和企业自身情况综合报价,不论采用何种支模方式均按报价执行 ，拆模后砼表面观感达到清水模要求                                                                6.材料场内运输、转运费用已综合考虑在单价中","m2",500,60,30000]
[30,"有梁板模板安、拆","1.支模高度：综合\n2.模板和超高模板类型：木模、组合钢模板、竹胶合板等综合\n3.支架材料：钢管、竹、木支架综合，断面尺寸、材质、工艺等符合设计和施工验收规范要求\n4.其他：单价已包括构件的超高模板费用等，投标人自行综合考虑\n5.本项目投标人应根据施工经验,现场实际情况和企业自身情况综合报价,不论采用何种支模方式均按报价执行 ，拆模后砼表面观感达到清水模要求                                                                6.材料场内运输、转运费用已综合考虑在单价中","m2",1200,60,72000]
[31,"屋面有梁板模板安、拆（含斜屋面）","1.支模高度：综合\n2.模板和超高模板类型：木模、组合钢模板、竹胶合板等综合\n3.支架材料：钢管、竹、木支架综合，断面尺寸、材质、工艺等符合设计和施工验收规范要求\n4.其他：单价已包括构件的超高模板费用等，投标人自行综合考虑\n5.本项目投标人应根据施工经验,现场实际情况和企业自身情况综合报价,不论采用何种支模方式均按报价执行 ，拆模后砼表面观感达到清水模要求                                                                6.材料场内运输、转运费用已综合考虑在单价中","m2",1200,80,96000]
[32,"墙模板安、拆","1.支模高度：综合\n2.模板和超高模板类型：木模、组合钢模板、竹胶合板等综合\n3.支架材料：钢管、竹、木支架综合，断面尺寸、材质、工艺等符合设计和施工验收规范要求\n4.其他：单价已包括构件的拉杆费用和超高模板费用等，投标人自行综合考虑\n5.本项目投标人应根据施工经验,现场实际情况和企业自身情况综合报价,不论采用何种支模方式均按报价执行 ，拆模后砼表面观感达到清水模要求                                                                6.材料场内运输、转运费用已综合考虑在单价中","m2",20,65,1300]
[33,"构造柱模板","1.支模高度：综合\n2.模板和超高模板类型：木模、组合钢模板、竹胶合板等综合\n3.支架材料：钢管、竹、木支架综合，断面尺寸、材质、工艺等符合设计和施工验收规范要求\n4.其他：单价已包括构件的拉杆费用和超高模板费用等，投标人自行综合考虑\n5.本项目投标人应根据施工经验,现场实际情况和企业自身情况综合报价,不论采用何种支模方式均按报价执行 ，拆模后砼表面观感达到清水模要求                                                                7.材料场内运输、转运费用已综合考虑在单价中","m2",{"$f":"'3#建筑物结构'!E35","v":20},60,1200]
[34,"圈梁、过梁模板","1.支模高度：综合\n2.模板和超高模板类型：木模、组合钢模板、竹胶合板等综合\n3.支架材料：钢管、竹、木支架综合，断面尺寸、材质、工艺等符合设计和施工验收规范要求\n4.其他：单价已包括构件的拉杆费用和超高模板费用等，投标人自行综合考虑\n5.本项目投标人应根据施工经验,现场实际情况和企业自身情况综合报价,不论采用何种支模方式均按报价执行 ，拆模后砼表面观感达到清水模要求                                                                8.材料场内运输、转运费用已综合考虑在单价中","m2",20,60,1200]
[35,"压顶模板","1.支模高度：综合\n2.模板和超高模板类型：木模、组合钢模板、竹胶合板等综合\n3.支架材料：钢管、竹、木支架综合，断面尺寸、材质、工艺等符合设计和施工验收规范要求\n4.其他：单价已包括构件的拉杆费用和超高模板费用等，投标人自行综合考虑\n5.本项目投标人应根据施工经验,现场实际情况和企业自身情况综合报价,不论采用何种支模方式均按报价执行 ，拆模后砼表面观感达到清水模要求                                                                9.材料场内运输、转运费用已综合考虑在单价中","m2",20,60,1200]
[36,"砼台阶模板","1.支模高度：综合\n2.模板和超高模板类型：木模、组合钢模板、竹胶合板等综合\n3.支架材料：钢管、竹、木支架综合，断面尺寸、材质、工艺等符合设计和施工验收规范要求\n5.本项目投标人应根据施工经验,现场实际情况和企业自身情况综合报价,不论采用何种支模方式均按报价执行 ，拆模后砼表面观感达到清水模要求                                                                                                               7.材料场内运输、转运费用已综合考虑在单价中                                                                                                                                                                                     8.工程量按水平投影面积计算 ","m2",10,70,700]
[37,"外脚手架","1.脚手架高度：综合                                                                                                                                                                                                                     2.脚手架类型：钢管脚手架 ，斜道、上料平台、安全网等投标人综合考虑，不再另行计算。                                                                                                                                                      3.脚手架材料：钢管、脚手板、安全网、水平防护、立面防护网的材质、工艺等符合相关安全及施工验收规范要求                                                                                                                                                             4.材料场内运输、转运费用已综合考虑在单价中","m2",800,22,17600]
[38,"预埋D20阻燃塑料管","1.名称：预埋电线管                                                                                                                                                                                                           2.管材型号：D20阻燃塑料管                                                                                                                                                                                                         3.预埋位置：板、梁、柱、墙等，详见设计                                                                                                                                                                                                     4.施工要求：满足施工及验收相关规范要求                                                                                                                                                                                                    5.材料场内运输、转运费用已综合考虑在单价中","m",{"$f":"'3#建筑物结构'!E40","v":100},5,500]
[39,"预埋D25阻燃塑料管","1.名称：预埋电线管                                                                                                                                                                                                             2.管材型号：D25阻燃塑料管                                                                                                                                                                                                        3.预埋位置：板、梁、柱、墙等，详见设计                                                                                                                                                                                           4.施工要求：满足施工及验收相关规范要求                                                                                                                                                                                            5.材料场内运输、转运费用已综合考虑在单价中","m",{"$f":"'3#建筑物结构'!E41","v":100},7,700]
[40,"预埋钢管 DN25","1.名称：预埋钢管                                                                                                                                                                                                                   2.管材型号：DN25热镀锌钢管                                                                                                                                                                                                        3.预埋位置：板、梁、柱、墙等，详见设计                                                                                                                                                                                                4.施工要求：满足施工及验收相关规范要求                                                                                                                                                                                                 5.材料场内运输、转运费用已综合考虑在单价中","m",{"$f":"'3#建筑物结构'!E42","v":10},20,200]
[41,"预埋 接线盒","1.名称：接线盒                                                                                                                                                                                                                      2.材质：PVC                                                                                                                                                                                                                       3.预埋位置：板、梁、柱、墙等，详见设计                                                                                                                                                                                        4.施工要求：满足施工及验收相关规范要求                                                                                                                                                                                                 5.材料场内运输、转运费用已综合考虑在单价中","个",20,4,80]
[" 合计",{"$nulls":5},{"$f":"SUM(G3:G43)","v":1017530}]
["注：1、全费用综合单价，包括人工费、材料费、机械费、管理费、利润、除安全文明施工费外的总价措施费、大型机械进出场费及进出场外的其他单价措施费、降排水费、规费、销项增值税和附加税、弃土费等费用；以上工程量均为暂估量，结算工程量以现场收方为准，因为量差发生的合同价格调整，合同单价均不予以调整。\n2、现场安全环保文明施工管理要求：（1）由公司统一发放印有“兴绿园林”字样和LOGO的安全帽和反光背心，班组按实名制领取，使用完后交回项目部，否则按采购费用扣款，其余参照合同附件中安全环保管理协议执行。（2）现场雾炮机由甲方提供，投标单位需安排人员管理使用，人工费、油费及管理费用综合考虑到投标报价中，不单独计取。                                                                                                                                                                                                                             3、施工平台由投标人自行考虑施工，费用综合考虑到投标报价中。"]
["1.本次采用全费用单价报价形式，最高限价为1017530.00元，施工单位所报价高于最高限价的为无效报价，采购人不予接受。同时在工程量清单中公布最高费用单价限价，施工单位的全费用单价限价，施工单位的全费用单价也不得超过最高全费用单价限价，否则，采购人将予以拒绝。"]
["2.最终结算时，以经审计单位核定的实际完成工程量及有效的竣工资料进行计算，全费用单价按中选的全费用单价进行计价。"]
["3.开具的发票为增值税专票（税率为9%）。"]

{"sheet":"构筑物桩基工程","index":5,"n_rows":19,"n_cols":10,"rows_kept":19,"merged":[[0,0,0,9],[2,1,2,2],[4,9,8,9],[15,0,15,9],[16,0,16,9],[17,0,17,9],[18,0,18,9]]}
["2023年“P”项目构筑物桩基工程清单与报价表"]
["序号","项目名称","项目特征描述","计量\r\n单位","工程量","全费用单价限价（元）","限价合价","班组所报全费用单价（元）","合价（元）","备注"]
[" ","桩基工程 ",null," "]
[1,"旋挖钻孔土石方 φ700mm-φ1000mm","1.地层情况：土石比综合，由投标人综合考虑报价；\n2.挖孔深度：综合 ；\n3.桩径：直径φ700mm~φ1000mm ；\n4.成孔方法：旋挖钻机成孔；\n5.挖桩土石方：投标人自行踏勘现场综合考虑、外弃土转运至项目经理部指定位置，转运距离1km范围内；\n6.含完成该工作所需的人工，材料（含主材、辅材、周转材料），机械费（含机械的进出场费），措施费（安全文明施工费、季节性施工、临时设施、夜间施工、二次搬运等）、规费等所有相关费用；投标人需配合发包人完成桩基检测（小应变、超声波、静载）、并完善相关资料；\n7.单桩桩长：按有效桩长计算，空桩部分及桩底扩大头部分由投标人综合考虑在投标报价内；\n8.含工完料清、工人安全防护用品、防暑降温等全部内容，并包含因工期计划必须要的窝工、赶工费用。因不合格造成的二次返工费用由分包单位自行承担。\n9.做法：满足设计及相关施工规范要求。","m",{"v":560,"d":"560.00"},{"v":210,"d":"210.00"},{"$f":"E4*F4","v":{"v":117600,"d":"117600.00"}}]
[2,"成孔灌注桩商品混凝土C30","1.混凝土强度等级：C30商品砼\n2.砼运输方式及运距：投标人自行确定\n3.砼现场泵送采用的机械种类及方式：投标人自行确定，泵送费用和泵送运距已综合考虑在单价中\n4.混凝土计算规格：按有效桩长乘以桩径按体积计算。投标人应综合考虑灌注桩的混凝土充盈系数及混凝土的超灌和扩大头部分，超灌高度满足设计及规范要求，该部分综合在投标报价内。\n5.含完成该工作所需的人工，材料（含主材、辅材、周转材料），机械费（含机械的进出场费），措施费（安全文明施工费、季节性施工、临时设施、夜间施工、二次搬运等）、规费等所有相关费用；投标人需配合发包人完成桩基检测（小应变、超声波、静载）、并完善相关资料；\n6.做法：满足设计及现行施工技术、质量验收规范要求","m3",{"v":100,"d":"100.00"},{"v":600,"d":"600.00"},{"v":60000,"d":"60000.00"},null,null,"混凝土实际用量超过图算量20%，则超过20%的部分商品砼按实结算。"]
[3,"成孔灌注桩 商品水下混凝土C30","1.混凝土强度等级：C30水下商品砼\n2.砼运输方式及运距：投标人自行确定\n3.砼现场泵送采用的机械种类及方式：投标人自行确定，泵送费用和泵送运距已综合考虑在单价中\n4.混凝土计算规格：按有效桩长乘以桩径按体积计算。投标人应综合考虑灌注桩的混凝土充盈系数及混凝土的超灌和扩大头部分，超灌高度满足设计及规范要求，该部分综合在投标报价内。\n5.含完成该工作所需的人工，材料（含主材、辅材、周转材料），机械费（含机械的进出场费），措施费（安全文明施工费、季节性施工、临时设施、夜间施工、二次搬运等）、规费等所有相关费用；投标人需配合发包人完成桩基检测（小应变、超声波、静载）、并完善相关资料；\n6.做法：满足设计及现行施工技术、质量验收规范要求","m3",{"v":20,"d":"20.00"},{"v":630,"d":"630.00"},{"v":12600,"d":"12600.00"}]
[4,"成孔灌注桩 C35商品混凝土","1.混凝土强度等级：C35商品砼\n2.砼运输方式及运距：投标人自行确定\n3.砼现场泵送采用的机械种类及方式：投标人自行确定，泵送费用和泵送运距已综合考虑在单价中\n4.混凝土计算规格：按有效桩长乘以桩径按体积计算。投标人应综合考虑灌注桩的混凝土充盈系数及混凝土的超灌和扩大头部分，超灌高度满足设计及规范要求，该部分综合在投标报价内。\n5.含完成该工作所需的人工，材料（含主材、辅材、周转材料），机械费（含机械的进出场费），措施费（安全文明施工费、季节性施工、临时设施、夜间施工、二次搬运等）、规费等所有相关费用；投标人需配合发包人完成桩基检测（小应变、超声波、静载）、并完善相关资料；\n6.做法：满足设计及现行施工技术、质量验收规范要求","m3",{"v":100,"d":"100.00"},{"v":610,"d":"610.00"},{"v":61000,"d":"61000.00"}]
[5,"成孔灌注桩 C35水下商品混凝土","1.混凝土强度等级：C35水下商品砼\n2.砼运输方式及运距：投标人自行确定\n3.砼现场泵送采用的机械种类及方式：投标人自行确定，泵送费用和泵送运距已综合考虑在单价中\n4.混凝土计算规格：按有效桩长乘以桩径按体积计算。投标人应综合考虑灌注桩的混凝土充盈系数及混凝土的超灌和扩大头部分，超灌高度满足设计及规范要求，该部分综合在投标报价内。\n5.含完成该工作所需的人工，材料（含主材、辅材、周转材料），机械费（含机械的进出场费），措施费（安全文明施工费、季节性施工、临时设施、夜间施工、二次搬运等）、规费等所有相关费用；投标人需配合发包人完成桩基检测（小应变、超声波、静载）、并完善相关资料；\n6.做法：满足设计及现行施工技术、质量验收规范要求","m3",{"v":20,"d":"20.00"},{"v":640,"d":"640.00"},{"v":12800,"d":"12800.00"}]
[6,"截（凿）桩头 （φ700mm-φ1000mm）","1.截（凿）桩头截面、高度、强度等级：满足规范，投标人综合考虑 ，\n2.桩头有无钢筋：有\n3.凿除方式：投标人综合考虑\n4.包含截桩头及检测土石方开挖（土石综合考虑），桩头钢筋梳理整形，外弃土转运至项目经理部指定位置，转运距离1km范围内；\n5.做法：满足设计及现行施工技术、质量验收规范要求","个",{"v":30,"d":"30.00"},{"v":260,"d":"260.00"},{"v":7800,"d":"7800.00"}]
[7,"声测管","1.材质、规格型号：材质为钢管，规格综合考虑\n2.包含声测管安装及检测后灌浆，压浆做法满足设计及相关规范要求\n3.做法：满足设计及现行施工技术、质量验收规范要求\n4.计算规则：该子项计算规则以长度计算","m",{"v":1680,"d":"1680.00"},{"v":13,"d":"13.00"},{"v":21840,"d":"21840.00"}]
[8,"钢护筒","1.地层情况：综合  \n2.护筒类型、长度：钢护筒，规格、长度、厚度等综合\n3.埋设方式：由投标人自行考虑\n4.做法：满足设计及现行施工技术、质量验收规范要求\n5.计算规则：按实际使用长度计算（孔口护筒已包含在钻孔报价内，不再计量）","m",{"v":120,"d":"120.00"},{"v":160,"d":"160.00"},{"v":19200,"d":"19200.00"}]
[9,"现浇构件钢筋HPB300直径 φ10以内 制作、安装","1.钢筋种类、规格：钢筋HPB300直径 φ10以内 \n2.钢筋连接方式：各种连接方式投标人综合考虑在报价中\n3.弧形构件钢筋以及桩钢筋笼的吊装费用，由投标人综合考虑，进入综合单价中\n4.投标人综合考虑埋设的方式，以及钢筋笼吊装等费用均包括在所报综合单价中不再另行计取；\n5.钢筋的复检、送检所需的材料费由投标人自行考虑在投标报价中不再另行计取；\n6.包含完成该工作所需的机械进出场费、材料场内外运输、二次或多次转运费均已包含在单价内。\n7.其余做法：满足设计及现行施工技术、质量验收规范要求","t",{"v":10,"d":"10.00"},{"v":6000,"d":"6000.00"},{"v":60000,"d":"60000.00"}]
[10,"现浇构件钢筋HRB400E直径 ≥φ10制作、安装","1.钢筋种类、规格：螺纹钢HRB400E ，钢筋直径≥Φ10\n2.钢筋连接方式：各种连接方式投标人综合考虑在报价中\n3.弧形构件钢筋以及桩钢筋笼的吊装费用，由投标人综合考虑，进入综合单价中\n4.投标人综合考虑埋设的方式，以及钢筋笼吊装等费用均包括在所报综合单价中不再另行计取\n5.钢筋的复检、送检所需的材料费由投标人自行考虑在投标报价中不再另行计取；\n6.包含完成该工作所需的机械进出场费、材料场内外运输、二次或多次转运费均已包含在单价内。\n7.其余做法：满足设计及现行施工技术、质量验收规范要求","t",{"v":60,"d":"60.00"},{"v":6000,"d":"6000.00"},{"v":360000,"d":"360000.00"}]
[11,"机械进出场费","1.包括机械进出场运输及转移费用及机械在施工现场进行安装、拆卸、各栋号间转移所需的人工费、材料费、机械费、试运转费和安装所需的辅助设施的费用；\n2.投标人自身原因（机械维修、更换等情况）导致的机械进出场费用不另行计算，非发包人原因造成的机械多次进出场费用不另行计算。","项",{"v":1,"d":"1.00"},{"v":25000,"d":"25000.00"},{"$f":"F14*E14","v":{"v":25000,"d":"25000.00"}}]
[null,"","合计：","",null,null,{"$f":"SUM(G4:G14)","v":{"v":757840,"d":"757840.00"}}]
["注：1、全费用综合单价，包括人工费、材料费、机械费、管理费、利润、除安全文明施工费外的总价措施费、大型机械进出场费及进出场外的其他单价措施费、降排水费、规费、销项增值税和附加税、弃土费等费用；以上工程量均为暂估量，结算工程量以现场收方为准，因为量差发生的合同价格调整，合同单价均不予以调整。\n2、现场安全环保文明施工管理要求：（1）由公司统一发放印有“兴绿园林”字样和LOGO的安全帽和反光背心，班组按实名制领取，使用完后交回项目部，否则按采购费用扣款，其余参照合同附件中安全环保管理协议执行。（2）现场雾炮机由甲方提供，投标单位需安排人员管理使用，人工费、油费及管理费用综合考虑到投标报价中，不单独计取。                                                                                                                                                                                                                             3、施工平台由投标人自行考虑施工，费用综合考虑到投标报价中。"]
["1.本次采用全费用单价报价形式，最高限价为75840.00元，施工单位所报价高于最高限价的为无效报价，采购人不予接受。同时在工程量清单中公布最高费用单价限价，施工单位的全费用单价限价，施工单位的全费用单价也不得超过最高全费用单价限价，否则，采购人将予以拒绝。"]
["2.最终结算时，以经审计单位核定的实际完成工程量及有效的竣工资料进行计算，全费用单价按中选的全费用单价进行计价。"]
["3.开具的发票为增值税专票（税率为9%）。"]